Workbook

Sheet ----1 (hidden)
B2: REGRESAR
E5: MACROPROCESO ESTRATÉGICO | M5: CÓDIGO: ESGr027
E6: PROCESO GESTIÓN SISTEMAS INTEGRADOS | M6: VERSIÓN: 7
E7: MATRIZ DE MEDICIÓN Y SEGUIMIENTO A LOS PROCESOS DE GESTIÓN | M7: VIGENCIA: 2020-03-20
M8: PÁGINA: 1 de 1
C10: FICHA DE INDICADOR
C12: MACROPROCESO | I12: NOMBRE DEL INDICADOR
C13: PROCESO GESTIÓN
C14: RESPONSABLE DE MEDICIÓN
C16: 1. COMPORTAMIENTO DE INDICADOR
C17: CLASIFICACIÓN DE LA MEDICIÓN | E17: 2 | H17: TIPO DE INDICADOR | L17: META
C18: FORMULA | L18: UNIDAD DE MEDIDA
C20: TENDENCIA | H20: NIVEL DE SEGREGACIÓN * | L20: ESCALA
L21: Deficiente | M21: Aceptable | N21: Bueno | O21: Excelente
C23: ORIGEN DE DATOS | H23: FRECUENCIA DE LA MEDICIÓN | J23: TRIMESTRAL | L23: FRECUENCIA DE RESULTADO | N23: ANUAL
C26: RESULTADOS
J27: ANÁLISIS DE DATOS Los datos indican un crecimiento en los acompañamientos entre el primer trimestre y el segundo trimestre de mas del 100%, por la contratación del personal de la oficina En el tercer trimestre se muestra un decrecimiento con respecto al periodo anterior por las vacaciones a mitad de año, las personas se reintegraron entre julio y agosto.
J34: ACCIÓN FORMULADA Reformular la meta para el próximo año dependiendo de los recursos asignados.
J41: RESPONSABLE
J42: =E14 -> 0
C45: PERIODO DE EVALUACIÓN
C46: MES | D46: =IF(J23="MENSUAL","ENERO",IF(J23="TRIMESTRAL","MARZO",IF(J23="SEMESTRAL","JUNIO",IF(J23="ANUAL",YEAR(TODAY()),"")))) -> MARZO | E46: =IF(J23="MENSUAL","FEBRERO",IF(J23="TRIMESTRAL","JUNIO",IF(J23="SEMESTRAL","DICIEMBRE",""))) -> JUNIO | F46: =IF(J23="MENSUAL","MARZO",IF(J23="TRIMESTRAL","SEPTIEMBRE","")) -> SEPTIEMBRE | G46: =IF(J23="MENSUAL","ABRIL",IF(J23="TRIMESTRAL","DICIEMBRE","")) -> DICIEMBRE | H46: =IF(J23="MENSUAL","MAYO","") ->  | I46: =IF(J23="MENSUAL","JUNIO","") ->  | J46: =IF(J23="MENSUAL","JULIO","") ->  | K46: =IF(J23="MENSUAL","AGOSTO","") ->  | L46: =IF(J23="MENSUAL","SEPTIEMBRE","") ->  | M46: =IF(J23="MENSUAL","OCTUBRE","") ->  | N46: =IF(J23="MENSUAL","NOVIEMBRE","") ->  | O46: =IF(J23="MENSUAL","DICIEMBRE","") -> 
C47: =G18 -> 0
C48: =G19 -> 0
C49: VALOR | D49: =IFERROR(IF($E$17=1,D47/D48,IF($E$17=2,D47,"")),"") -> 0 | E49: =IFERROR(IF($E$17=1,E47/E48,IF($E$17=2,E47,"")),"") -> 0 | F49: 0 | G49: 0 | H49: 0 | I49: 0 | J49: 0 | K49: 0 | L49: 0 | M49: 0 | N49: 0 | O49: 0
C50: META PONDERADA | D50: =IF(AND(N23="ANUAL",J23="MENSUAL"),N17/12,IF(AND(N23="ANUAL",J23="TRIMESTRAL"),N17/4,IF(AND(N23="ANUAL",J23="SEMESTRAL"),N17/2,IF(AND(N23="ANUAL",J23="ANUAL"),N17,IF(AND(N23="SEMESTRAL",J23="MENSUAL"),N17/6,IF(AND(N23="SEMESTRAL",J23="TRIMESTRAL"),N17/2,IF(AND(N23="SEMESTRAL",J23="SEMESTRAL"),N17,IF(AND(N23="SEMESTRAL",J23="ANUAL"),"REVISAR FRECUENCIAS",IF(AND(N23="TRIMESTRAL",J23="MENSUAL"),N17/3,IF(AND(N23="TRIMESTRAL",J23="TRIMESTRAL"),N17,IF(AND(N23="TRIMESTRAL",J23="SEMESTRAL"),"REVISAR FRECUENCIAS",IF(AND(N23="TRIMESTRAL",J23="ANUAL"),"REVISAR FRECUENCIAS",IF(AND(N23="MENSUAL",J23="MENSUAL"),N17,IF(AND(N23="MENSUAL",J23="TRIMESTRAL"),"REVISAR FRECUENCIAS",IF(AND(N23="MENSUAL",J23="SEMESTRAL"),"REVISAR FRECUENCIAS",IF(AND(N23="MENSUAL",J23="ANUAL"),"REVISAR FRECUENCIAS","")))))))))))))))) -> 0 | E50: =IF(AND(N23="ANUAL",J23="MENSUAL"),N17/12+D50,IF(AND(N23="ANUAL",J23="TRIMESTRAL"),N17/4+D50,IF(AND(N23="ANUAL",J23="SEMESTRAL"),N17/2+D50,IF(AND(N23="SEMESTRAL",J23="MENSUAL"),N17/6+D50,IF(AND(N23="SEMESTRAL",J23="TRIMESTRAL"),N17/2+D50,IF(AND(N23="SEMESTRAL",J23="SEMESTRAL"),N17,IF(AND(N23="TRIMESTRAL",J23="MENSUAL"),N17/3+D50,IF(AND(N23="TRIMESTRAL",J23="TRIMESTRAL"),N17,IF(AND(N23="MENSUAL",J23="MENSUAL"),N17,""))))))))) -> 0 | F50: =IF(AND(N23="ANUAL",J23="MENSUAL"),N17/12+E50,IF(AND(N23="ANUAL",J23="TRIMESTRAL"),N17/4+E50,IF(AND(N23="SEMESTRAL",J23="MENSUAL"),N17/6+E50,IF(AND(N23="SEMESTRAL",J23="TRIMESTRAL"),N17/2,IF(AND(N23="TRIMESTRAL",J23="MENSUAL"),N17/3+E50,IF(AND(N23="TRIMESTRAL",J23="TRIMESTRAL"),N17,IF(AND(N23="MENSUAL",J23="MENSUAL"),N17,""))))))) -> 0 | G50: =IF(AND(N23="ANUAL",J23="MENSUAL"),N17/12+F50,IF(AND(N23="ANUAL",J23="TRIMESTRAL"),N17/4+F50,IF(AND(N23="SEMESTRAL",J23="MENSUAL"),N17/6+F50,IF(AND(N23="SEMESTRAL",J23="TRIMESTRAL"),N17/2+F50,IF(AND(N23="TRIMESTRAL",J23="MENSUAL"),N17/3,IF(AND(N23="TRIMESTRAL",J23="TRIMESTRAL"),N17,IF(AND(N23="MENSUAL",J23="MENSUAL"),N17,""))))))) -> 0 | H50: =IF(AND($N$23="ANUAL",$J$23="MENSUAL"),$N$17/12+G50,IF(AND(N23="SEMESTRAL",J23="MENSUAL"),N17/6+G50,IF(AND(N23="TRIMESTRAL",J23="MENSUAL"),N17/3+G50,IF(AND(N23="MENSUAL",J23="MENSUAL"),N17,"")))) ->  | I50: =IF(AND($N$23="ANUAL",$J$23="MENSUAL"),$N$17/12+H50,IF(AND(N23="SEMESTRAL",J23="MENSUAL"),N17/6+H50,IF(AND(N23="TRIMESTRAL",J23="MENSUAL"),N17/3+H50,IF(AND(N23="MENSUAL",J23="MENSUAL"),N17,"")))) ->  | J50: =IF(AND($N$23="ANUAL",$J$23="MENSUAL"),$N$17/12+I50,IF(AND(N23="SEMESTRAL",J23="MENSUAL"),N17/6,IF(AND(N23="TRIMESTRAL",J23="MENSUAL"),N17/3,IF(AND(N23="MENSUAL",J23="MENSUAL"),N17,"")))) ->  | K50: =IF(AND($N$23="ANUAL",$J$23="MENSUAL"),$N$17/12+J50,IF(AND(N23="SEMESTRAL",J23="MENSUAL"),N17/6+J50,IF(AND(N23="TRIMESTRAL",J23="MENSUAL"),N17/3+J50,IF(AND(N23="MENSUAL",J23="MENSUAL"),N17,"")))) ->  | L50: =IF(AND($N$23="ANUAL",$J$23="MENSUAL"),$N$17/12+K50,IF(AND(N23="SEMESTRAL",J23="MENSUAL"),N17/6+K50,IF(AND(N23="TRIMESTRAL",J23="MENSUAL"),N17/3+K50,IF(AND(N23="MENSUAL",J23="MENSUAL"),N17,"")))) ->  | M50: =IF(AND($N$23="ANUAL",$J$23="MENSUAL"),$N$17/12+L50,IF(AND(N23="SEMESTRAL",J23="MENSUAL"),N17/6+L50,IF(AND(N23="TRIMESTRAL",J23="MENSUAL"),N17/3,IF(AND(N23="MENSUAL",J23="MENSUAL"),N17,"")))) ->  | N50: =IF(AND($N$23="ANUAL",$J$23="MENSUAL"),$N$17/12+M50,IF(AND(N23="SEMESTRAL",J23="MENSUAL"),N17/6+M50,IF(AND(N23="TRIMESTRAL",J23="MENSUAL"),N17/3+M50,IF(AND(N23="MENSUAL",J23="MENSUAL"),N17,"")))) ->  | O50: =IF(AND($N$23="ANUAL",$J$23="MENSUAL"),$N$17/12+N50,IF(AND(N23="SEMESTRAL",J23="MENSUAL"),N17/6+N50,IF(AND(N23="TRIMESTRAL",J23="MENSUAL"),N17/3+N50,IF(AND(N23="MENSUAL",J23="MENSUAL"),N17,"")))) -> 
C52: NIVEL DE SEGREGACIÓN *
C53: UNIDAD SEGREGADA (Ej. Facultad, Programa Académico, Área) | G53: RESULTADO | K53: ANALISIS DE DATOS SEGREGADO
G73: Estratégico | J73: Eficacia
G74: Misional | J74: Eficiencia
G75: Apoyo | J75: Acreditación
G76: Seguimiento, Medición, Análisis y Evaluación | J76: Positiva
G77: Direccionamiento Estratégico | J77: Negativa
G78: Planeación Institucional | J78: Por Unidad Regional
G79: Proyectos Especiales y Relaciones Interinstitucionales | J79: Por Facultad
G80: Sistemas Integrados | J80: Por Programa Académico
G81: Autoevaluación y Acreditación | J81: Por área
G82: Comunicaciones | J82: Por Laboratorio
G83: Formación y Aprendizaje | J83: Otros
G84: Ciencia, Tecnología e Innovación | J84: No Aplica
G85: Interacción Social Universitaria
G86: Bienestar Universitario
G87: Admisiones y Registro
G88: Graduados
G89: Dialogando con el Mundo
G90: Talento Humano
G91: Jurídica
G92: Financiera
G93: Sistemas y Tecnología
G94: Bienes y Servicios
G95: Documental
G96: Apoyo Académico
G97: Control Interno
G98: Control Disciplinario
G99: Servicio de Atención al Ciudadano

Sheet MATRIZ DE INDICADORES
D2: MACROPROCESO ESTRATÉGICO | S2: CÓDIGO: ESGr027
D3: PROCESO GESTIÓN SISTEMAS INTEGRADOS - CALIDAD | S3: VERSIÓN: 8
D4: MATRIZ DE MEDICIÓN Y SEGUIMIENTO A LOS PROCESOS DE GESTIÓN | S4: VIGENCIA: 2023-07-28
S5: PÁGINA: 1 de 5
Q7: FECHA DE ACTUALIZACIÓN: | S7: AÑO | T7: MES | U7: DÍA
S8: 2023 | T8: 2 | U8: 24
B10: ALINEACIÓN DE LOS INDICADORES CON LOS DOCUMENTOS ESTRATÉGICOS Y LOS OBJETIVOS DE CALIDAD
B12: PROCESO GESTIÓN | C12: FRENTES DEL PLAN ESTRATÉGICO | D12: LINEAMIENTOS DE LA POLÍTICA DE CALIDAD | E12: OBJETIVOS DE CALIDAD | F12: OBJETIVO GENERAL DEL PROCESO | G12: OBJETIVOS ESPECÍFICOS | H12: NOMBRE INDICADOR | I12: FÓRMULA | J12: TIPO DE INDICADOR | K12: SEGUIMIENTO MEDICIÓN | L12: META | M12: ACTIVIDAD | N12: RESPONSABLE DE LA ACTIVIDAD | O12: ¿QUÉ RECURSOS SE REQUIEREN? | P12: FECHA EJECUCIÓN DE ACTIVIDADES | Q12: EVIDENCIA | R12: ¿CUÁNDO FINALIZARÁ? | S12: RESULTADO | T12: NIVEL OBTENIDO | U12: ACCESO
B13: SERVICIO DE ATENCIÓN AL CIUDADANO | C13: Frente Estratégico VI: Organización Universitaria con alma y corazón. | D13: Se legitima como una organización social del conocimiento y el aprendizaje que se compromete con el pensamiento basado en riesgos y el mejoramiento continuo mediante buenas prácticas administrativas y académicas en búsqueda de la acreditación de programas y la acreditación institucional, enfocándose en el bienestar de la comunidad universitaria como factor constitutivo de la vida y la libertad y la consolidación de una organización universitaria inteligente con alma y corazón. | E13: 5. Mejorar continuamente el desempeño de los procesos a través de la implementación de buenas prácticas institucionales y de la aplicación de los mecanismos dispuestos por la Universidad de Cundinamarca, para la constitución de una organización universitaria inteligente con alma y corazón. | F13: Atender y tramitar las peticiones, quejas, reclamos, sugerencias, felicitaciones y Denuncias (PQRSFyD) de los ciudadanos y demás grupos de interés de manera oportuna, diligente y eficaz en búsqueda del mejoramiento continuo para garantizar la satisfacción de los mismos. | G13: Disminuir en 40% la recurrencia de los derechos de petición, quejas, reclamos y denuncias; durante la vigencia 2023, comparado con la vigencia 2022. | H13: Índice de mejora en cuanto a la disminución de derechos de petición, quejas, reclamos, denuncias. Índice de mejora en cuanto a la disminución de quejas sobre las oficinas, facultades y programas académicos. | I13: Número de causas de DP-Q-R-D que disminuyeron en su recurrencia en el periodo igual al de la vigencia anterior * 100/Total causas de las DP-Q-R-D recibidas y analizadas de la vigencia anterior | J13: EFICACIA | K13: TRIMESTRAL | L13: ='SAC-2'!D50 -> 0.4 | M13: Contratar el personal de la Oficina de Servicio de Atención al Ciudadano | N13: Oficina de Talento Humano - Secretaria General | O13: Financieros para el contrato. | P13: 2023-01-01 | Q13: Contrato | R13: 2023-12-31 | S13: ='SAC-2'!G49 -> 0.6181818182 | T13: EXCELENTE | U13: SAC-2
M14: Inducción a comunidad académica. | N14: Oficina de Servicio de Atención al Ciudadano. | O14: Material POP Recursos Físicos (Instalaciones sedes, seccionales y extensiones) | P14: Febrero 2023 Julio 2023 | Q14: Material fotográfico
M15: Capacitar a funcionarios nuevos y antiguos para dar respuesta a las solicitudes. | N15: Gestora de Servicio de Atención al Ciudadano. | O15: Teams | P15: febrero 2023 mayo 2023 agosto 2023 septiembre 2023 | Q15: Listados de asistencia Presentación
M16: Identificar y divulgar los medios de comunicación con la Oficina de Servicio de Atención al Ciudadano. | N16: Oficina de Servicio de Atención al Ciudadano - Oficina Asesora de Comunicaciones. | O16: Micrositio de la Oficina Redes Sociales Correo electrónico | P16: junio 2022 junio 2023 | Q16: Solicitud Material publicado
I17: N° de quejas que disminuyeron frente a las oficinas, facultades y/o programas académicos en relación al periodo igual de la vigencia anterior * 100/ Total de quejas recibidas y analizadas de la vigencia anterior | L17: ='SAC-3'!D50 -> 0.4 | M17: Recepcionar y tramitar las peticiones allegadas por los diferentes mecanismos establecidos. | N17: funcionario Oficina de Servicio de Atención al Ciudadano | O17: Aplicativo SAIC | P17: diario | Q17: Reportes generados del aplicativo SAIC | S17: ='SAC-3'!G49 -> 0.75 | T17: EXCELENTE | U17: SAC-3
M18: Identificar las peticiones más reiterativas | N18: Gestora de Servicio de Atención al Ciudadano. | O18: Aplicativo SAIC | P18: enero 2023 abril 2023 julio 2013 octubre 2023 | Q18: Reportes generados del aplicativo SAIC
M19: Analizar los resultados obtenidos mediante pareto | N19: Gestora de Servicio de Atención al Ciudadano. | O19: base de datos generada del aplicativo SAIC | P19: abril 2023 julio 2013 octubre 2023 | Q19: Informe
M20: Medir lo resultados obtenidos | N20: Gestora de Servicio de Atención al Ciudadano. | O20: Informe | P20: enero 2023 abril 2023 julio 2013 octubre 2023 | Q20: Resultados del indicador
M21: Implementar acciones según los resultados | N21: Gestora de Servicio de Atención al Ciudadano. | O21: N/A | P21: 2023-12-01 | Q21: Ficha técnica del indicador
G22: Dar respuesta oportuna al 83 % de las peticiones, quejas, reclamos, sugerencias y denuncias dentro del tiempo establecido por ley, teniendo en cuenta el orden de llegada durante la vigencia 2023. | H22: Eficiencia en el tiempo de respuestas de derechos de peticiones, quejas, reclamos, sugerencias y denuncias. | I22: # de DP- D- Q-R-S resueltas en 13 o menos días * 100/# total de DP-D-Q-R-S | L22: ='SAC-4'!D50 -> 0.83 | M22: Contratar el personal de la Oficina de Servicio de Atención al Ciudadano | N22: Oficina de Talento Humano - Secretaria General | O22: Financieros para el contrato. | P22: 2023-01-01 | Q22: Contrato | S22: ='SAC-4'!G49 -> 0.8676470588 | T22: EXCELENTE | U22: SAC-4
M23: Capacitar a funcionarios nuevos y antiguos para dar respuesta a las solicitudes. | N23: Gestora de Servicio de Atención al Ciudadano. | O23: Teams | P23: febrero 2023 mayo 2023 agosto 2023 septiembre 2023 | Q23: Listados de asistencia Presentación
M24: identificar el tipo de petición | N24: funcionarios Oficina de Servicio de Atención al Ciudadano | O24: Aplicativo SAIC | P24: diario | Q24: Reportes generados del aplicativo SAIC
M25: Asignar la petición al funcionario competente | N25: funcionarios Oficina de Servicio de Atención al Ciudadano | O25: Aplicativo SAIC | P25: diario | Q25: Reportes generados del aplicativo SAIC
M26: Remitir alertas cada 3 días | N26: Sistema automático | O26: Aplicativo SAIC | P26: cuando aplique | Q26: Reporte de notificaciones generados del aplicativo SAIC
M27: Identificar los tiempos de respuestas mediante el reporte | N27: Gestora de Servicio de Atención al Ciudadano. | O27: Reportes generados del aplicativo SAIC | P27: enero 2023 abril 2023 julio 2013 octubre 2023 | Q27: Informe
M28: Medir lo resultados obtenidos | N28: Gestora de Servicio de Atención al Ciudadano. | O28: Informe | P28: enero 2023 abril 2023 julio 2013 octubre 2023 | Q28: Resultados del indicador
M29: Implementar acciones según los resultados | N29: Gestora de Servicio de Atención al Ciudadano. | O29: N/A | P29: 2023-12-01 | Q29: Ficha técnica del indicador
B88: Diagonal 18 No. 20-29 Fusagasugá – Cundinamarca Teléfono (601) 8281483 Línea Gratuita 018000180414 www.ucundinamarca.edu.co E-mail: info@ucundinamarca.edu.co NIT: 890.680.062-2
B89: Documento controlado por el Sistema de Gestión de la Calidad Asegúrese que corresponde a la última versión consultando el Portal Institucional
C98: LINEAMIENTOS DE LA POLÍTICA DE CALIDAD | D98: OBJETIVOS DE CALIDAD | E98: ALINEACIÓN DE LOS INDICADORES CON LOS DOCUMENTOS ESTRATÉGICOS Y LOS OBJETIVOS DE CALIDAD
D99: OBJETIVOS DE SEGURIDAD Y SALUD EN EL TRABAJO | E99: ALINEACIÓN DE LOS INDICADORES CON LOS DOCUMENTOS ESTRATÉGICOS Y LOS OBJETIVOS DE SEGURIDAD Y SALUD EN EL TRABAJO
C100: LINEAMIENTOS DE LA POLÍTICA DE AMBIENTAL | D100: OBJETIVOS DE AMBIENTAL | E100: ALINEACIÓN DE LOS INDICADORES CON LOS DOCUMENTOS ESTRATÉGICOS Y LOS OBJETIVOS DE AMBIENTAL
C101: LINEAMIENTOS DE LA POLÍTICA DE SEGURIDAD DE LA INFORMACIÓN | D101: OBJETIVOS DE SEGURIDAD DE LA INFORMACIÓN | E101: ALINEACIÓN DE LOS INDICADORES CON LOS DOCUMENTOS ESTRATÉGICOS Y LOS OBJETIVOS DE SEGURIDAD DE LA INFORMACIÓN
C102: LINEAMIENTOS DE LA POLÍTICA DE SEGURIDAD DE ANTISOBORNO | D102: OBJETIVOS DE SEGURIDAD DE ANTISOBORNO | E102: ALINEACIÓN DE LOS INDICADORES CON LOS DOCUMENTOS ESTRATÉGICOS Y LOS OBJETIVOS DE SEGURIDAD DE ANTISOBORNO
C103: LINEAMIENTOS DE LA POLÍTICA DE LA CONCILIACIÓN DE LA VIDA PERSONAL, FAMILIAR Y LABORAL | D103: OBJETIVOS DE LA CONCILIACIÓN DE LA VIDA PERSONAL, FAMILIAR Y LABORAL | E103: ALINEACIÓN DE LOS INDICADORES CON LOS DOCUMENTOS ESTRATÉGICOS Y LOS OBJETIVOS DE LA CONCILIACIÓN DE LA VIDA PERSONAL, FAMILIAR Y LABORAL

Sheet SAC-2
B2: REGRESAR
E5: MACROPROCESO ESTRATÉGICO | M5: CÓDIGO: ESGr027
E6: PROCESO GESTIÓN SISTEMAS INTEGRADOS - CALIDAD | M6: VERSIÓN: 8
E7: MATRIZ DE MEDICIÓN Y SEGUIMIENTO A LOS PROCESOS DE GESTIÓN | M7: VIGENCIA: 2023-07-28
M8: PÁGINA: 2 de 5
C10: FICHA DE INDICADOR
C12: MACROPROCESO | E12: Seguimiento, Medición, Análisis y Evaluación | I12: NOMBRE DEL INDICADOR | K12: Índice de mejora en cuanto a la disminución de derechos de petición, quejas, reclamos, denuncias
C13: PROCESO GESTIÓN | E13: Servicio de Atención al Ciudadano
C14: RESPONSABLE DE MEDICIÓN | E14: Gestor Servicio de Atención al Ciudadano
C16: 1. COMPORTAMIENTO DE INDICADOR
C17: CLASIFICACIÓN DE LA MEDICIÓN | E17: 1 | H17: TIPO DE INDICADOR | J17: Eficacia | L17: META | N17: 0.4
C18: FORMULA | E18: NUMERADOR | G18: Número de causas de DP-Q-R-D que disminuyeron en su recurrencia en el periodo igual al de la vigencia anterior * 100 | L18: UNIDAD DE MEDIDA | N18: Porcentaje
E19: DENOMINADOR | G19: Total causas de las DP-Q-R-D recibidas y analizadas de la vigencia anterior
C20: TENDENCIA | E20: Positiva | H20: NIVEL DE SEGREGACIÓN * | J20: Otros | L20: ESCALA
L21: Deficiente | M21: Aceptable | N21: Bueno | O21: Excelente
L22: 0% - 20% | M22: 20.1% - 30% | N22: 30.1% - 40% | O22: 40.1% - 100%
C23: ORIGEN DE DATOS NUMERADOR | E23: Excel con las tipologías | H23: FRECUENCIA DE LA MEDICIÓN | J23: TRIMESTRAL | L23: FRECUENCIA DE RESULTADO | N23: TRIMESTRAL
C24: ORIGEN DE DATOS DENOMINADOR | E24: Excel con las tipologías
C26: RESULTADOS
J27: ANÁLISIS DE DATOS
J28: PRIMER TRIMESTRE 2023: Para generar este indicador el gestor del proceso de servicio de atención al ciudadano toma como base el reporte generado del primer trimestre de 2022 y primer trimestre de 2023, en donde se identifica cuales fueron los asuntos mas reiterativos del año anterior en comparación con al vigencia actual, para los derechos de petición, quejas, reclamos, sugerencias y denuncias, luego se hace un análisis de Pareto del año anterior y se compara con la vigencia 2023, con el fin de poder evidenciar la disminución en el comportamiento de las causas. Una vez identificadas las causas se hace un análisis desagregado donde se pudo encontrar que muchos de los asuntos disminuyeron considerablemente para las vigencia de 2023, el cual permitió que el resultado porcentual de este indicador quedara por encima de la meta establecida, el cual dio como resultado 74%. Sin embargo, dentro de la segregación que se realizo se identifico una amplia disminución en las solicitudes de certificados, solicitud de información y recibos de pago, como también, se identifico un mínimo aumento en horarios y registro de materias dado que los estudiante presentaron dificultad en el momento del registro por falta de cupos y por cruce de horarios. SEGUNDO TRIMESTRE 2023: Para generar este indicador el gestor del proceso de servicio de atención al ciudadano toma como base el reporte generado de segundo trimestre de 2022 y segundo trimestre de 2023, en donde se identifica cuales fueron los asuntos mas reiterativos del año anterior en comparación con al vigencia actual, para los derechos de petición, quejas, reclamos, sugerencias y denuncias, luego se hace un análisis de Pareto del año anterior, se compara con la vigencia 2023, con el fin de poder evidenciar la disminución en el comportamiento de las causas. Una vez identificadas las causas se hace un análisis desagregado donde se pudo encontrar que muchos de los asuntos disminuyeron considerablemente para las vigencia de 2023, el cual permitió que el resultado porcentual de este indicador quedara por encima de la meta establecida, el cual dio como resultado 46%. Sin embargo, dentro de la segregación que se realizo se identifico una disminución mínima en las verificaciones académicas, proceso de selección y pago contrato, otro de los factores encontrados fue la disminución de las peticiones instauradas a la universidad, en cuanto a los proceso de selección, dado que los procesos dan respuesta en su mayoría a los correos enviados por los ciudadanos dando respuesta de fondo a sus inquietudes. TERCER TRIMESTRE 2023: Para generar este indicador el gestor del proceso de servicio de atención al ciudadano toma como base el reporte generado del primer trimestre de 2022 y primer trimestre de 2023, en donde se identifica cuales fueron los asuntos mas reiterativos del año anterior en comparación con al vigencia actual, para los derechos de petición, quejas, reclamos, sugerencias y denuncias, luego se hace un análisis de Pareto del año anterior y se compara con la vigencia 2023, con el fin de poder evidenciar la disminución en el comportamiento de las causas. Una vez identificadas las causas se hace un análisis desagregado donde se pudo encontrar que muchos de los asuntos disminuyeron considerablemente para las vigencia de 2023, el cual permitió que el resultado porcentual de este indicador quedara por encima de la meta establecida, el cual dio como resultado 51%. Sin embargo, dentro de la segregación que se realizo se identifico una amplia disminución en las solicitudes de certificados, solicitud de información y recibos de pago, como también, se identifico un mínimo aumento en horarios y registro de materias dado que los estudiante presentaron dificultad en el momento del registro por falta de cupos y por cruce de horarios. CUARTO TRIMESTRE 2023 Para generar este indicador el gestor del proceso de servicio de atención al ciudadano toma como base el reporte generado del cuarto trimestre de 2022 y cuarto trimestre de 2023, en donde se identifica cuales fueron los asuntos mas reiterativos del año anterior en comparación con la vigencia actual, para los derechos de petición, quejas, reclamos, sugerencias y denuncias, luego se hace un análisis de Pareto del año anterior, se compara con la vigencia 2023, con el fin de poder evidenciar la disminución en el comportamiento de las causas. Una vez identificadas las causas se hace un análisis desagregado donde se pudo encontrar que muchos de los asuntos disminuyeron considerablemente para las vigencia de 2023, el cual permitió que el resultado porcentual de este indicador quedara por encima de la meta establecida, el cual dio como resultado 62%. Sin embargo, dentro de la segregación que se realizo se identifico un incremento considerable en temas de procesos academicos y calificaciones para esta vigencia.
J34: ACCIÓN FORMULADA
J41: RESPONSABLE
J42: =E14 -> Gestor Servicio de Atención al Ciudadano
C45: PERIODO DE EVALUACIÓN
C46: MES | D46: =IF(J23="MENSUAL","ENERO",IF(J23="TRIMESTRAL","MARZO",IF(J23="SEMESTRAL","JUNIO",IF(J23="ANUAL",YEAR(TODAY()),"")))) -> MARZO | E46: =IF(J23="MENSUAL","FEBRERO",IF(J23="TRIMESTRAL","JUNIO",IF(J23="SEMESTRAL","DICIEMBRE",""))) -> JUNIO | F46: =IF(J23="MENSUAL","MARZO",IF(J23="TRIMESTRAL","SEPTIEMBRE","")) -> SEPTIEMBRE | G46: =IF(J23="MENSUAL","ABRIL",IF(J23="TRIMESTRAL","DICIEMBRE","")) -> DICIEMBRE | H46: =IF(J23="MENSUAL","MAYO","") ->  | I46: =IF(J23="MENSUAL","JUNIO","") ->  | J46: =IF(J23="MENSUAL","JULIO","") ->  | K46: =IF(J23="MENSUAL","AGOSTO","") ->  | L46: =IF(J23="MENSUAL","SEPTIEMBRE","") ->  | M46: =IF(J23="MENSUAL","OCTUBRE","") ->  | N46: =IF(J23="MENSUAL","NOVIEMBRE","") ->  | O46: =IF(J23="MENSUAL","DICIEMBRE","") -> 
C47: =G18 -> Número de causas de DP-Q-R-D que disminuyeron en su recurrencia en el periodo igual al de la vigencia anterior * 100 | D47: 107 | E47: 26 | F47: 45 | G47: 34
C48: =G19 -> Total causas de las DP-Q-R-D recibidas y analizadas de la vigencia anterior | D48: 144 | E48: 56 | F48: 88 | G48: 55
C49: VALOR | D49: =IFERROR(IF($E$17=1,D47/D48,IF($E$17=2,D47,"")),"") -> 0.7430555556 | E49: 0.4642857143 | F49: 0.5113636364 | G49: 0.6181818182
C50: META PONDERADA | D50: =IF(AND(N23="ANUAL",J23="MENSUAL"),N17/12,IF(AND(N23="ANUAL",J23="TRIMESTRAL"),N17/4,IF(AND(N23="ANUAL",J23="SEMESTRAL"),N17/2,IF(AND(N23="ANUAL",J23="ANUAL"),N17,IF(AND(N23="SEMESTRAL",J23="MENSUAL"),N17/6,IF(AND(N23="SEMESTRAL",J23="TRIMESTRAL"),N17/2,IF(AND(N23="SEMESTRAL",J23="SEMESTRAL"),N17,IF(AND(N23="SEMESTRAL",J23="ANUAL"),"REVISAR FRECUENCIAS",IF(AND(N23="TRIMESTRAL",J23="MENSUAL"),N17/3,IF(AND(N23="TRIMESTRAL",J23="TRIMESTRAL"),N17,IF(AND(N23="TRIMESTRAL",J23="SEMESTRAL"),"REVISAR FRECUENCIAS",IF(AND(N23="TRIMESTRAL",J23="ANUAL"),"REVISAR FRECUENCIAS",IF(AND(N23="MENSUAL",J23="MENSUAL"),N17,IF(AND(N23="MENSUAL",J23="TRIMESTRAL"),"REVISAR FRECUENCIAS",IF(AND(N23="MENSUAL",J23="SEMESTRAL"),"REVISAR FRECUENCIAS",IF(AND(N23="MENSUAL",J23="ANUAL"),"REVISAR FRECUENCIAS","")))))))))))))))) -> 0.4 | E50: =IF(AND(N23="ANUAL",J23="MENSUAL"),N17/12+D50,IF(AND(N23="ANUAL",J23="TRIMESTRAL"),N17/4+D50,IF(AND(N23="ANUAL",J23="SEMESTRAL"),N17/2+D50,IF(AND(N23="SEMESTRAL",J23="MENSUAL"),N17/6+D50,IF(AND(N23="SEMESTRAL",J23="TRIMESTRAL"),N17/2+D50,IF(AND(N23="SEMESTRAL",J23="SEMESTRAL"),N17,IF(AND(N23="TRIMESTRAL",J23="MENSUAL"),N17/3+D50,IF(AND(N23="TRIMESTRAL",J23="TRIMESTRAL"),N17,IF(AND(N23="MENSUAL",J23="MENSUAL"),N17,""))))))))) -> 0.4 | F50: =IF(AND(N23="ANUAL",J23="MENSUAL"),N17/12+E50,IF(AND(N23="ANUAL",J23="TRIMESTRAL"),N17/4+E50,IF(AND(N23="SEMESTRAL",J23="MENSUAL"),N17/6+E50,IF(AND(N23="SEMESTRAL",J23="TRIMESTRAL"),N17/2,IF(AND(N23="TRIMESTRAL",J23="MENSUAL"),N17/3+E50,IF(AND(N23="TRIMESTRAL",J23="TRIMESTRAL"),N17,IF(AND(N23="MENSUAL",J23="MENSUAL"),N17,""))))))) -> 0.4 | G50: =IF(AND(N23="ANUAL",J23="MENSUAL"),N17/12+F50,IF(AND(N23="ANUAL",J23="TRIMESTRAL"),N17/4+F50,IF(AND(N23="SEMESTRAL",J23="MENSUAL"),N17/6+F50,IF(AND(N23="SEMESTRAL",J23="TRIMESTRAL"),N17/2+F50,IF(AND(N23="TRIMESTRAL",J23="MENSUAL"),N17/3,IF(AND(N23="TRIMESTRAL",J23="TRIMESTRAL"),N17,IF(AND(N23="MENSUAL",J23="MENSUAL"),N17,""))))))) -> 0.4 | H50: =IF(AND($N$23="ANUAL",$J$23="MENSUAL"),$N$17/12+G50,IF(AND(N23="SEMESTRAL",J23="MENSUAL"),N17/6+G50,IF(AND(N23="TRIMESTRAL",J23="MENSUAL"),N17/3+G50,IF(AND(N23="MENSUAL",J23="MENSUAL"),N17,"")))) ->  | I50: =IF(AND($N$23="ANUAL",$J$23="MENSUAL"),$N$17/12+H50,IF(AND(N23="SEMESTRAL",J23="MENSUAL"),N17/6+H50,IF(AND(N23="TRIMESTRAL",J23="MENSUAL"),N17/3+H50,IF(AND(N23="MENSUAL",J23="MENSUAL"),N17,"")))) ->  | J50: =IF(AND($N$23="ANUAL",$J$23="MENSUAL"),$N$17/12+I50,IF(AND(N23="SEMESTRAL",J23="MENSUAL"),N17/6,IF(AND(N23="TRIMESTRAL",J23="MENSUAL"),N17/3,IF(AND(N23="MENSUAL",J23="MENSUAL"),N17,"")))) ->  | K50: =IF(AND($N$23="ANUAL",$J$23="MENSUAL"),$N$17/12+J50,IF(AND(N23="SEMESTRAL",J23="MENSUAL"),N17/6+J50,IF(AND(N23="TRIMESTRAL",J23="MENSUAL"),N17/3+J50,IF(AND(N23="MENSUAL",J23="MENSUAL"),N17,"")))) ->  | L50: =IF(AND($N$23="ANUAL",$J$23="MENSUAL"),$N$17/12+K50,IF(AND(N23="SEMESTRAL",J23="MENSUAL"),N17/6+K50,IF(AND(N23="TRIMESTRAL",J23="MENSUAL"),N17/3+K50,IF(AND(N23="MENSUAL",J23="MENSUAL"),N17,"")))) ->  | M50: =IF(AND($N$23="ANUAL",$J$23="MENSUAL"),$N$17/12+L50,IF(AND(N23="SEMESTRAL",J23="MENSUAL"),N17/6+L50,IF(AND(N23="TRIMESTRAL",J23="MENSUAL"),N17/3,IF(AND(N23="MENSUAL",J23="MENSUAL"),N17,"")))) ->  | N50: =IF(AND($N$23="ANUAL",$J$23="MENSUAL"),$N$17/12+M50,IF(AND(N23="SEMESTRAL",J23="MENSUAL"),N17/6+M50,IF(AND(N23="TRIMESTRAL",J23="MENSUAL"),N17/3+M50,IF(AND(N23="MENSUAL",J23="MENSUAL"),N17,"")))) ->  | O50: =IF(AND($N$23="ANUAL",$J$23="MENSUAL"),$N$17/12+N50,IF(AND(N23="SEMESTRAL",J23="MENSUAL"),N17/6+N50,IF(AND(N23="TRIMESTRAL",J23="MENSUAL"),N17/3+N50,IF(AND(N23="MENSUAL",J23="MENSUAL"),N17,"")))) -> 
C51: PRIMER TRIMESTRE
C52: NIVEL DE SEGREGACIÓN *
C53: UNIDAD SEGREGADA (Ej. Facultad, Programa Académico, Área) | G53: RESULTADO | K53: ANÁLISIS DE DATOS SEGREGADO
C55: CERTIFICACIONES | G55: =1-6/36 -> 0.8333333333 | K55: De acuerdo al tipo de asunto para el 2022 se recibieron 36 DP-Q-R-D y para el 2023 primer trimestre se recibieron 6 por el mismo concepto, es decir, que se dio una disminución de 30 PQRS.
C56: SOLICITUD DE INFORMACIÓN | G56: =1-1/15 -> 0.9333333333 | K56: De acuerdo al tipo de asunto para el 2022 se recibieron 15 DP-Q-R-D y para el 2023 primer trimestre se recibieron 1 por el mismo concepto, es decir, que se dio una disminución de 14 PQRS.
C57: RECIBOS DE PAGO | G57: =1-1/14 -> 0.9285714286 | K57: De acuerdo al tipo de asunto para el 2022 se recibieron 14 DP-Q-R-D y para el 2023 primer trimestre se recibieron 1 por el mismo concepto, es decir, que se dio una disminución de 13 PQRS.
C58: PROCESOS ACADÉMICOS | G58: =1-6/10 -> 0.4 | K58: De acuerdo al tipo de asunto para el 2022 se recibieron 10 DP-Q-R-D y para el 2023 primer trimestre se recibieron 6 por el mismo concepto, es decir, que se dio una disminución de 4 PQRS.
C59: GRADOS | G59: =1-0/9 -> 1 | K59: De acuerdo al tipo de asunto para el 2022 se recibieron 9 DP-Q-R-D y para el 2023 primer trimestre NO se recibieron peticiones por el mismo concepto, es decir, que se dio una disminución de 9 PQRS.
C60: REINTEGRO | G60: =1-3/8 -> 0.625 | K60: De acuerdo al tipo de asunto para el 2022 se recibieron 8 DP-Q-R-D y para el 2023 primer trimestre se recibieron 3 por el mismo concepto, es decir, que se dio una disminución de 5 PQRS.
C61: CORREOS INSTITUCIONALES | G61: =1-1/8 -> 0.875 | K61: De acuerdo al tipo de asunto para el 2022 se recibieron 8 DP-Q-R-D y para el 2023 primer trimestre se recibieron 1 por el mismo concepto, es decir, que se dio una disminución de 7 PQRS.
C62: HORARIOS | G62: =1-9/7 -> -0.2857142857 | K62: De acuerdo al tipo de asunto para el 2022 se recibieron 7 DP-Q-R-D y para el 2023 primer trimestre se recibieron 9 por el mismo concepto, es decir, que se dio un aumento de 2 PQRS.
C63: APLAZAMIENTO | G63: =1-3/7 -> 0.5714285714 | K63: De acuerdo al tipo de asunto para el 2022 se recibieron 7 DP-Q-R-D y para el 2023 primer trimestre se recibieron 3 por el mismo concepto, es decir, que se dio una disminución de 4 PQRS.
C64: SOLICITUD DE DOCUMENTOS | G64: =1-1/7 -> 0.8571428571 | K64: De acuerdo al tipo de asunto para el 2022 se recibieron 7 DP-Q-R-D y para el 2023 primer trimestre se recibió 1 por el mismo concepto, es decir, que se dio una disminución de 6 PQRS.
C65: DERECHO DE PETICIÓN | G65: =1-1/5 -> 0.8 | K65: De acuerdo al tipo de asunto para el 2022 se recibieron 5 DP-Q-R-D y para el 2023 primer trimestre se recibió 1 por el mismo concepto, es decir, que se dio una disminución de 4 PQRS.
C66: COMPORTAMIENTO ADMINISTRATIVOS | G66: =1-1/4 -> 0.75 | K66: De acuerdo al tipo de asunto para el 2022 se recibieron 4 DP-Q-R-D y para el 2023 primer trimestre se recibió 1 por el mismo concepto, es decir, que se dio una disminución de 3 PQRS.
C67: CALIFICACIONES | G67: =1-1/4 -> 0.75 | K67: De acuerdo al tipo de asunto para el 2022 se recibieron 4 DP-Q-R-D y para el 2023 primer trimestre se recibió 1 por el mismo concepto, es decir, que se dio una disminución de 3 PQRS.
C68: INSCRIPCIÓN DE MATERIAS | G68: =1-6/4 -> -0.5 | K68: De acuerdo al tipo de asunto para el 2022 se recibieron 4 DP-Q-R-D y para el 2023 primer trimestre se recibieron 6 por el mismo concepto, es decir, que se dio un aumento de 2 PQRS.
C69: REUBICACIÓN LABORAL | G69: =1-0/3 -> 1 | K69: De acuerdo al tipo de asunto para el 2022 se recibieron 3 DP-Q-R-D y para el 2023 primer trimestre NO se recibieron peticiones por el mismo concepto, es decir, que se dio una disminución de 3 PQRS.
C70: PROGRAMAS ACADÉMICOS | G70: =1-1/3 -> 0.6666666667 | K70: De acuerdo al tipo de asunto para el 2022 se recibieron 3 DP-Q-R-D y para el 2023 primer trimestre se recibió 1 por el mismo concepto, es decir, que se dio una disminución de 2 PQRS.
C71: SEGUNDO TRIMESTRE
C72: NIVEL DE SEGREGACIÓN *
C73: UNIDAD SEGREGADA (Ej. Facultad, Programa Académico, Área) | G73: RESULTADO | K73: ANÁLISIS DE DATOS SEGREGADO
C75: REINTEGRO | G75: =1-4/10 -> 0.6 | K75: De acuerdo al tipo de asunto para el 2022 se recibieron 10 DP-Q-R-D y para el 2023 segundo trimestre se recibieron 4 por el mismo concepto, es decir, que se dio una disminución de 6 PQRS.
C76: CALIFICACIONES | G76: =1-5/8 -> 0.375 | K76: De acuerdo al tipo de asunto para el 2022 se recibieron 8 DP-Q-R-D y para el 2023 segundo trimestre se recibieron 5 por el mismo concepto, es decir, que se dio una disminución de 3 PQRS.
C77: CERTIFICACIONES | G77: =1-8/8 -> 0 | K77: De acuerdo al tipo de asunto para el 2022 se recibieron 8 DP-Q-R-D y para el 2023 segundo trimestre se recibieron 8 por el mismo concepto, es decir, que se mantuvo constante.
C78: PROCESOS ACADÉMICOS | G78: =1-3/5 -> 0.4 | K78: De acuerdo al tipo de asunto para el 2022 se recibieron 5 DP-Q-R-D y para el 2023 segundo trimestre se recibieron 3 por el mismo concepto, es decir, que se dio una disminución de 2 PQRS.
C79: ASIGNACIÓN Y RECONOCIMIENTO PUNTAJE | G79: =1-0/5 -> 1 | K79: De acuerdo al tipo de asunto para el 2022 se recibieron 5 DP-Q-R-D y para el 2023 segundo trimestre NO se recibieron peticiones por el mismo concepto, es decir, que se dio una disminución de 5 PQRS.
C80: CONTRATACIÓN DOCENTE | G80: =1-0/3 -> 1 | K80: De acuerdo al tipo de asunto para el 2022 se recibieron 3 DP-Q-R-D y para el 2023 segundo trimestre NO se recibieron peticiones por el mismo concepto, es decir, que se dio una disminución de 3 PQRS.
C81: SOLICITUD DE DOCUMENTOS | G81: =1-1/2 -> 0.5 | K81: De acuerdo al tipo de asunto para el 2022 se recibieron 2 DP-Q-R-D y para el 2023 segundo trimestre se recibieron 1 por el mismo concepto, es decir, que se dio una disminución de 1 PQRS.
C82: RECIBOS DE PAGO | G82: =1-0/2 -> 1 | K82: De acuerdo al tipo de asunto para el 2022 se recibieron 2 DP-Q-R-D y para el 2023 segundo trimestre NO se recibieron peticiones por el mismo concepto, es decir, que se dio una disminución de 2 PQRS.
C83: AJUSTES CORREO INSTITUCIONAL | G83: =1-0/2 -> 1 | K83: De acuerdo al tipo de asunto para el 2022 se recibieron 2 DP-Q-R-D y para el 2023 segundo trimestre NO se recibieron peticiones por el mismo concepto, es decir, que se dio una disminución de 2 PQRS.
C84: CONTRATACIÓN | G84: =1-1/7 -> 0.8571428571 | K84: De acuerdo al tipo de asunto para el 2022 se recibieron 2 DP-Q-R-D y para el 2023 segundo trimestre se recibió 1 por el mismo concepto, es decir, que se dio una disminución de 1 PQRS.
C85: COMPORTAMIENTO ADMINISTRATIVOS | G85: =1-2/2 -> 0 | K85: De acuerdo al tipo de asunto para el 2022 se recibieron 2 DP-Q-R-D y para el 2023 segundo trimestre se recibió 2 por el mismo concepto, es decir, que se mantuvo constante.
C86: VERIFICACIONES ACADÉMICAS | G86: =1-3/2 -> -0.5 | K86: De acuerdo al tipo de asunto para el 2022 se recibieron 2 DP-Q-R-D y para el 2023 segundo trimestre se recibió 3 por el mismo concepto, es decir, que se dio un incremento de 1 PQRS.
C87: APLAZAMIENTO | G87: =1-1/1 -> 0 | K87: De acuerdo al tipo de asunto para el 2022 se recibieron 1 DP-Q-R-D y para el 2023 segundo trimestre se recibió 1 por el mismo concepto, es decir, que se mantuvo constante.
C88: PROCESO DE SELECCIÓN | G88: =1-2/1 -> -1 | K88: De acuerdo al tipo de asunto para el 2022 se recibieron 1 DP-Q-R-D y para el 2023 segundo trimestre se recibió 2 por el mismo concepto, es decir, que se dio un incremento de 1 PQRS.
C89: PAGO CONTRATO | G89: =1-2/1 -> -1 | K89: De acuerdo al tipo de asunto para el 2022 se recibieron 1 DP-Q-R-D y para el 2023 segundo trimestre se recibió 2 por el mismo concepto, es decir, que se dio un incremento de 1 PQRS.
C90: CONVOCATORIAS | G90: =1-0/1 -> 1 | K90: De acuerdo al tipo de asunto para el 2022 se recibieron 1 DP-Q-R-D y para el 2023 segundo trimestre NO se recibieron peticiones por el mismo concepto, es decir, que se dio una disminución de 1 PQRS.
C91: PROGRAMAS ACADÉMICOS | G91: =1-1/1 -> 0 | K91: De acuerdo al tipo de asunto para el 2022 se recibieron 1 DP-Q-R-D y para el 2023 segundo trimestre se recibió 1 por el mismo concepto, es decir, que se mantuvo constante.
C92: TERCER TRIMESTRE
C93: NIVEL DE SEGREGACIÓN *
C94: UNIDAD SEGREGADA (Ej. Facultad, Programa Académico, Área) | G94: RESULTADO | K94: ANÁLISIS DE DATOS SEGREGADO
C96: PROCESOS ACADEMICOS | G96: 0.09 | K96: De acuerdo al tipo de asunto para el 2022 se recibieron 11 DP-Q-R-D y para el 2023 tecer trimestre se recibieron 10 por el mismo concepto, es decir, que se dio una disminución de 1 PQRS.
C97: CERTIFICACIONES | G97: 0.56 | K97: De acuerdo al tipo de asunto para el 2022 se recibieron 9 DP-Q-R-D y para el 2023 tecer trimestre se recibieron 4 por el mismo concepto, es decir, que se dio una disminución de 5 PQRS.
C98: DEVOLUCIONES | G98: 0.67 | K98: De acuerdo al tipo de asunto para el 2022 se recibieron 9 DP-Q-R-D y para el 2023 tercer trimestre se recibieron 3 por el mismo concepto, es decir, que se dio una disminución de 6 PQRS.
C99: REINTEGRO | G99: 0.38 | K99: De acuerdo al tipo de asunto para el 2022 se recibieron 8 DP-Q-R-D y para el 2023 tercer trimestre se recibieron 5 por el mismo concepto, es decir, que se dio una disminución de 3 PQRS.
C100: PRESTACION DE SERVICIO | G100: 0.88 | K100: De acuerdo al tipo de asunto para el 2022 se recibieron 8 DP-Q-R-D y para el 2023 tercer trimestre se recibieron 1 por el mismo concepto, es decir, que se dio una disminución de 7 PQRS.
C101: INSCRIPCION DE MATERIAS | G101: 0.33 | K101: De acuerdo al tipo de asunto para el 2022 se recibieron 6 DP-Q-R-D y para el 2023 tercer trimestre se recibieron 4 por el mismo concepto, es decir, que se dio una disminución de 2 PQRS.
C102: RECIBOS DE PAGO | G102: 0.67 | K102: De acuerdo al tipo de asunto para el 2022 se recibieron 6 DP-Q-R-D y para el 2023 tecer trimestre se recibieron 2 por el mismo concepto, es decir, que se dio una disminución de 4 PQRS.
C103: COMPORTAMIENTO DOCENTES | G103: 1 | K103: De acuerdo al tipo de asunto para el 2022 se recibieron 6 DP-Q-R-D y para el 2023 tercer trimestre NO se recibieron peticiones por el mismo concepto, es decir, que se dio una disminución de 6 PQRS.
C104: HORARIOS | G104: -0.4 | K104: De acuerdo al tipo de asunto para el 2022 se recibieron 5 DP-Q-R-D y para el 2023 tercer trimestre se recibieron 7 por el mismo concepto, es decir, que se dio un aumento de 2 PQRS.
C105: COMPORTAMIENTO ADMINISTRATIVOS | G105: 0.75 | K105: De acuerdo al tipo de asunto para el 2022 se recibieron 4 DP-Q-R-D y para el 2023 tercer trimestre se recibió 1 por el mismo concepto, es decir, que se dio una disminución de 3 PQRS.
C106: SOLICITUD DE DOCUMENTOS | G106: 0 | K106: De acuerdo al tipo de asunto para el 2022 se recibieron 4 DP-Q-R-D y para el 2023 tercer trimestre se recibió 4 por el mismo concepto, es decir, que se mantuvo constante.
C107: CONVENIOS EDUCATIVOS | G107: 1 | K107: De acuerdo al tipo de asunto para el 2022 se recibieron 3 DP-Q-R-D y para el 2023 tercer trimestre NO se recibió peticiones por el mismo concepto, es decir, que se dio un incremento de 3 PQRS.
C108: MOVILIDAD ACADEMICA | G108: 1 | K108: De acuerdo al tipo de asunto para el 2022 se recibieron 3 DP-Q-R-D y para el 2023 tercer trimestre NO se recibió peticiones por el mismo concepto, es decir, que se dio una disminución de 3 PQRS.
C109: APLAZAMIENTO | G109: 0 | K109: De acuerdo al tipo de asunto para el 2022 se recibieron 3 DP-Q-R-D y para el 2023 tercer trimestre se recibió 3 por el mismo concepto, es decir, que se mantuvo constante.
C110: SOLICITUD DE INFORMACION | G110: 0.67 | K110: De acuerdo al tipo de asunto para el 2022 se recibieron 3 DP-Q-R-D y para el 2023 tercer trimestre se recibió 1 por el mismo concepto, es decir, que se dio una disminución de 2 PQRS.
C111: CUARTO TRIMESTRE
C112: NIVEL DE SEGREGACIÓN *
C113: UNIDAD SEGREGADA (Ej. Facultad, Programa Académico, Área) | G113: RESULTADO | K113: ANÁLISIS DE DATOS SEGREGADO
C115: BANCO HOJAS DE VIDA | G115: =1-0/7 -> 1 | K115: De acuerdo al tipo de asunto para el 2022 se recibieron 7 DP-Q-R-D y para el 2023 cuarto trimestre NO se recibieron solicitudes por el mismo concepto, es decir, que se dio una disminución de 7 PQRS.
C116: DEVOLUCIONES | G116: =1-3/6 -> 0.5 | K116: De acuerdo al tipo de asunto para el 2022 se recibieron 6 DP-Q-R-D y para el 2023 cuarto trimestre se recibieron 3 por el mismo concepto, es decir, que se dio una disminución de 3 PQRS.
C117: PROCESOS ACADEMICOS | G117: =1-8/5 -> -0.6 | K117: De acuerdo al tipo de asunto para el 2022 se recibieron 5 DP-Q-R-D y para el 2023 cuarto trimestre se recibieron 8 por el mismo concepto, es decir, que se dio un incremento de 3 PQRS.
C118: CALIFICACIONES | G118: =1-12/4 -> -2 | K118: De acuerdo al tipo de asunto para el 2022 se recibieron 4 DP-Q-R-D y para el 2023 cuarto trimestre se recibieron 16 por el mismo concepto, es decir, que se dio un aumento de 12 PQRS.
C119: PRESTACION DE SERVICIO | G119: =1-0/4 -> 1 | K119: De acuerdo al tipo de asunto para el 2022 se recibieron 4 DP-Q-R-D y para el 2023 cuarto trimestre NO se recibieron solicitudes por el mismo concepto, es decir, que se dio una disminución de 4 PQRS.
C120: VERIFICACIONES ACADÉMICAS | G120: =1-0/4 -> 1 | K120: De acuerdo al tipo de asunto para el 2022 se recibieron 4 DP-Q-R-D y para el 2023 cuarto trimestre NO se recibieron solicitudes por el mismo concepto, es decir, que se dio una disminución de 4 PQRS.
C121: PROCESO DE SELECCION | G121: =1-1/4 -> 0.75 | K121: De acuerdo al tipo de asunto para el 2022 se recibieron 4 DP-Q-R-D y para el 2023 cuarto trimestre se recibio 1 por el mismo concepto, es decir, que se dio una disminución de 3 PQRS.
C122: COMPORTAMIENTO ADMINISTRATIVOS | G122: =1-2/4 -> 0.5 | K122: De acuerdo al tipo de asunto para el 2022 se recibieron 4 DP-Q-R-D y para el 2023 cuarto trimestre se recibieron 2 peticiones por el mismo concepto, es decir, que se dio una disminución de 2 PQRS.
C123: REINTEGRO | G123: =1-2/4 -> 0.5 | K123: De acuerdo al tipo de asunto para el 2022 se recibieron 4 DP-Q-R-D y para el 2023 cuarto trimestre se recibieron 2 por el mismo concepto, es decir, que se dio una disminución de 2 PQRS.
C124: CONTRATACIÓN | G124: =1-0/3 -> 1 | K124: De acuerdo al tipo de asunto para el 2022 se recibieron 3 DP-Q-R-D y para el 2023 cuarto trimestre NO se recibió peticiones por el mismo concepto, es decir, que se dio una disminución de 3 PQRS.
C125: COMPORTAMIENTO DOCENTES | G125: =1-2/2 -> 0 | K125: De acuerdo al tipo de asunto para el 2022 se recibieron 2 DP-Q-R-D y para el 2023 cuarto trimestre se recibió 2 por el mismo concepto, es decir, que se mantuvo constante.
C126: CORREOS INSTITUCIONALES | G126: =1-0/2 -> 1 | K126: De acuerdo al tipo de asunto para el 2022 se recibieron 2 DP-Q-R-D y para el 2023 cuarto trimestre NO se recibió peticiones por el mismo concepto, es decir, que se dio un incremento de 2 PQRS.
C127: COMPORTAMIENTO ESTUDIANTES | G127: =1-3/2 -> -0.5 | K127: De acuerdo al tipo de asunto para el 2022 se recibieron 2 DP-Q-R-D y para el 2023 cuarto trimestre se recibió 3 peticiones por el mismo concepto, es decir, que se dio un incremento de 1 PQRS.
C128: INFRAESTRUCTURA UNIVERSIDAD | G128: =1-3/6 -> 0.5 | K128: De acuerdo al tipo de asunto para el 2022 se recibieron 2 DP-Q-R-D y para el 2023 cuarto trimestre NO se recibió peticiones por el mismo concepto, es decir, que se dío una dismución de 2 P-Q-R-D
C129: CONVOCATORIAS | G129: 0.5 | K129: De acuerdo al tipo de asunto para el 2022 se recibieron 2 DP-Q-R-D y para el 2023 cuarto trimestre NO se recibió peticiones por el mismo concepto, es decir, que se dio una disminución de 2 PQRS.

Sheet SAC-3
B2: REGRESAR
E5: MACROPROCESO ESTRATÉGICO | M5: CÓDIGO: ESGr027
E6: PROCESO GESTIÓN SISTEMAS INTEGRADOS - CALIDAD | M6: VERSIÓN: 8
E7: MATRIZ DE MEDICIÓN Y SEGUIMIENTO A LOS PROCESOS DE GESTIÓN | M7: VIGENCIA: 2023-07-28
M8: PÁGINA: 3 de 5
C10: FICHA DE INDICADOR
C12: MACROPROCESO | E12: Seguimiento, Medición, Análisis y Evaluación | I12: NOMBRE DEL INDICADOR | K12: Índice de mejora en cuanto a la disminución de quejas sobre las oficinas, facultades y programas académicos
C13: PROCESO GESTIÓN | E13: Servicio de Atención al Ciudadano
C14: RESPONSABLE DE MEDICIÓN | E14: Gestor Servicio de Atención al Ciudadano
C16: 1. COMPORTAMIENTO DE INDICADOR
C17: CLASIFICACIÓN DE LA MEDICIÓN | E17: 1 | H17: TIPO DE INDICADOR | J17: Eficacia | L17: META | N17: 0.4
C18: FORMULA | E18: NUMERADOR | G18: N° de quejas que disminuyeron frente a las oficinas, facultades y/o programas académicos en relación al periodo igual de la vigencia anterior * 100 | L18: UNIDAD DE MEDIDA | N18: Porcentaje
E19: DENOMINADOR | G19: Total de quejas recibidas y analizadas de la vigencia anterior
C20: TENDENCIA | E20: Positiva | H20: NIVEL DE SEGREGACIÓN * | J20: Por Facultad | L20: ESCALA
L21: Deficiente | M21: Aceptable | N21: Bueno | O21: Excelente
L22: 0% - 20% | M22: 20.1% - 30% | N22: 30.1% - 40% | O22: 40.1% - 100%
C23: ORIGEN DE DATOS NUMERADOR | E23: Excel con las tipologías | H23: FRECUENCIA DE LA MEDICIÓN | J23: TRIMESTRAL | L23: FRECUENCIA DE RESULTADO | N23: TRIMESTRAL
C24: ORIGEN DE DATOS DENOMINADOR | E24: Excel con las tipologías
C26: RESULTADOS
J27: ANÁLISIS DE DATOS
J28: PRIMER TRIMESTRE 2023 Para la construcción de este indicador el gestor del proceso de servicio de atención al ciudadano toma como base el reporte generado del primer trimestre de 2022 y primer trimestre de 2023, se hace una clasificación por áreas de las quejas allegadas en esas vigencias, las cuales son muy pocas a comparación de la población estudiantil que cuenta la Universidad de Cundinamarca el cual esta por un total de 13.500 aproximadamente, luego se identifica cuales son las oficinas que recibieron y resolvieron mas quejas. Posteriormente se hace un análisis desagregado donde se identificó que las áreas que recibieron quejas son Vicerrectoría administrativa y financiera y Dirección del programa ingeniería de sistemas para el primer trimestre de 2023, generando un aumento con relación al primer trimestre de 2022 que no se presento ninguna. De acuerdo a lo anterior y teniendo en cuenta que para el primer trimestre de 2022, no se presentaron quejas el cual da como resultado cero (0) quejas y que para el primer trimestre de 2023, se presento dos (2) quejas, generando un aumento, estos datos no permite que se pueda establecer un porcentaje que valide si se cumple con la meta establecida. SEGUNDO TRIMESTRE 2023 Para la construcción de este indicador el gestor del proceso de servicio de atención al ciudadano toma como base el reporte generado del segundo trimestre de 2022 y segundo trimestre de 2023, se hace una clasificación por áreas de las quejas allegadas en esas vigencias, las cuales son muy pocas a comparación de la población estudiantil que cuenta la Universidad de Cundinamarca el cual esta por un total de 13.500 aproximadamente, luego se identifica cuales son las oficinas que recibieron y resolvieron mas quejas. Posteriormente se hace un análisis desagregado donde se identificó que las áreas que recibieron quejas en el segundo trimestre de 2022, son Dirección Del Programa Contaduría Publica y Dirección Del Programa Ingeniería Ambiental con un total de 3 quejas y para el segundo trimestre de 2023 no se presentó ninguna quejas a estas áreas. De acuerdo a lo anterior y teniendo en cuenta que para el segundo trimestre de 2022, se presentaron tres (3) quejas a las áreas mencionadas, para el segundo trimestre de 2023, no se presentaron, generando una disminución, el cual da como resultado en la medición un 75% por encima de la meta establecida para este indicador. CUARTO TRIMESTRE 2023 Para la construcción de este indicador el gestor del proceso de servicio de atención al ciudadano toma como base el reporte generado del cuarto trimestre de 2022 y cuarto trimestre de 2023, se hace una clasificación por áreas de las quejas allegadas en esas vigencias, las cuales son muy pocas a comparación de la población estudiantil que cuenta la Universidad de Cundinamarca el cual esta por un total de 12.108 aproximadamente, luego se identifica cuales son las oficinas, programas y facultades que recibieron y resolvieron mas quejas. Posteriormente se hace un análisis desagregado donde se identificó que las áreas que recibieron quejas en el cuarto trimestre de 2022, son Gestión Bienestar Universitario, Gestión Control Disciplinario y Gestión de Planeación Institucional con un total de 3 quejas y para el cuarto trimestre de 2023 no se presentó ninguna queja para estas áreas, ni a otras áreas, programas o facultades. De acuerdo a lo anterior y teniendo en cuenta que para el cuarto trimestre de 2022, se presentaron tres (3) quejas al área mencionada, para el cuarto trimestre de 2023, no se presentaron, generando una disminución, el cual da como resultado en la medición un 75% por encima de la meta establecida para este indicador.
J34: ACCIÓN FORMULADA
J41: RESPONSABLE
J42: =E14 -> Gestor Servicio de Atención al Ciudadano
C45: PERIODO DE EVALUACIÓN
C46: MES | D46: =IF(J23="MENSUAL","ENERO",IF(J23="TRIMESTRAL","MARZO",IF(J23="SEMESTRAL","JUNIO",IF(J23="ANUAL",YEAR(TODAY()),"")))) -> MARZO | E46: =IF(J23="MENSUAL","FEBRERO",IF(J23="TRIMESTRAL","JUNIO",IF(J23="SEMESTRAL","DICIEMBRE",""))) -> JUNIO | F46: =IF(J23="MENSUAL","MARZO",IF(J23="TRIMESTRAL","SEPTIEMBRE","")) -> SEPTIEMBRE | G46: =IF(J23="MENSUAL","ABRIL",IF(J23="TRIMESTRAL","DICIEMBRE","")) -> DICIEMBRE | H46: =IF(J23="MENSUAL","MAYO","") ->  | I46: =IF(J23="MENSUAL","JUNIO","") ->  | J46: =IF(J23="MENSUAL","JULIO","") ->  | K46: =IF(J23="MENSUAL","AGOSTO","") ->  | L46: =IF(J23="MENSUAL","SEPTIEMBRE","") ->  | M46: =IF(J23="MENSUAL","OCTUBRE","") ->  | N46: =IF(J23="MENSUAL","NOVIEMBRE","") ->  | O46: =IF(J23="MENSUAL","DICIEMBRE","") -> 
C47: =G18 -> N° de quejas que disminuyeron frente a las oficinas, facultades y/o programas académicos en relación al periodo igual de la vigencia anterior * 100 | D47: 2 | E47: 3 | F47: 3 | G47: 3
C48: =G19 -> Total de quejas recibidas y analizadas de la vigencia anterior | D48: 0 | E48: 3 | F48: 3 | G48: 4
C49: VALOR | E49: =IFERROR(IF($E$17=1,E47/E48,IF($E$17=2,E47,"")),"") -> 1 | F49: 1 | G49: 0.75
C50: META PONDERADA | D50: =IF(AND(N23="ANUAL",J23="MENSUAL"),N17/12,IF(AND(N23="ANUAL",J23="TRIMESTRAL"),N17/4,IF(AND(N23="ANUAL",J23="SEMESTRAL"),N17/2,IF(AND(N23="ANUAL",J23="ANUAL"),N17,IF(AND(N23="SEMESTRAL",J23="MENSUAL"),N17/6,IF(AND(N23="SEMESTRAL",J23="TRIMESTRAL"),N17/2,IF(AND(N23="SEMESTRAL",J23="SEMESTRAL"),N17,IF(AND(N23="SEMESTRAL",J23="ANUAL"),"REVISAR FRECUENCIAS",IF(AND(N23="TRIMESTRAL",J23="MENSUAL"),N17/3,IF(AND(N23="TRIMESTRAL",J23="TRIMESTRAL"),N17,IF(AND(N23="TRIMESTRAL",J23="SEMESTRAL"),"REVISAR FRECUENCIAS",IF(AND(N23="TRIMESTRAL",J23="ANUAL"),"REVISAR FRECUENCIAS",IF(AND(N23="MENSUAL",J23="MENSUAL"),N17,IF(AND(N23="MENSUAL",J23="TRIMESTRAL"),"REVISAR FRECUENCIAS",IF(AND(N23="MENSUAL",J23="SEMESTRAL"),"REVISAR FRECUENCIAS",IF(AND(N23="MENSUAL",J23="ANUAL"),"REVISAR FRECUENCIAS","")))))))))))))))) -> 0.4 | E50: =IF(AND(N23="ANUAL",J23="MENSUAL"),N17/12+D50,IF(AND(N23="ANUAL",J23="TRIMESTRAL"),N17/4+D50,IF(AND(N23="ANUAL",J23="SEMESTRAL"),N17/2+D50,IF(AND(N23="SEMESTRAL",J23="MENSUAL"),N17/6+D50,IF(AND(N23="SEMESTRAL",J23="TRIMESTRAL"),N17/2+D50,IF(AND(N23="SEMESTRAL",J23="SEMESTRAL"),N17,IF(AND(N23="TRIMESTRAL",J23="MENSUAL"),N17/3+D50,IF(AND(N23="TRIMESTRAL",J23="TRIMESTRAL"),N17,IF(AND(N23="MENSUAL",J23="MENSUAL"),N17,""))))))))) -> 0.4 | F50: =IF(AND(N23="ANUAL",J23="MENSUAL"),N17/12+E50,IF(AND(N23="ANUAL",J23="TRIMESTRAL"),N17/4+E50,IF(AND(N23="SEMESTRAL",J23="MENSUAL"),N17/6+E50,IF(AND(N23="SEMESTRAL",J23="TRIMESTRAL"),N17/2,IF(AND(N23="TRIMESTRAL",J23="MENSUAL"),N17/3+E50,IF(AND(N23="TRIMESTRAL",J23="TRIMESTRAL"),N17,IF(AND(N23="MENSUAL",J23="MENSUAL"),N17,""))))))) -> 0.4 | G50: =IF(AND(N23="ANUAL",J23="MENSUAL"),N17/12+F50,IF(AND(N23="ANUAL",J23="TRIMESTRAL"),N17/4+F50,IF(AND(N23="SEMESTRAL",J23="MENSUAL"),N17/6+F50,IF(AND(N23="SEMESTRAL",J23="TRIMESTRAL"),N17/2+F50,IF(AND(N23="TRIMESTRAL",J23="MENSUAL"),N17/3,IF(AND(N23="TRIMESTRAL",J23="TRIMESTRAL"),N17,IF(AND(N23="MENSUAL",J23="MENSUAL"),N17,""))))))) -> 0.4 | H50: =IF(AND($N$23="ANUAL",$J$23="MENSUAL"),$N$17/12+G50,IF(AND(N23="SEMESTRAL",J23="MENSUAL"),N17/6+G50,IF(AND(N23="TRIMESTRAL",J23="MENSUAL"),N17/3+G50,IF(AND(N23="MENSUAL",J23="MENSUAL"),N17,"")))) ->  | I50: =IF(AND($N$23="ANUAL",$J$23="MENSUAL"),$N$17/12+H50,IF(AND(N23="SEMESTRAL",J23="MENSUAL"),N17/6+H50,IF(AND(N23="TRIMESTRAL",J23="MENSUAL"),N17/3+H50,IF(AND(N23="MENSUAL",J23="MENSUAL"),N17,"")))) ->  | J50: =IF(AND($N$23="ANUAL",$J$23="MENSUAL"),$N$17/12+I50,IF(AND(N23="SEMESTRAL",J23="MENSUAL"),N17/6,IF(AND(N23="TRIMESTRAL",J23="MENSUAL"),N17/3,IF(AND(N23="MENSUAL",J23="MENSUAL"),N17,"")))) ->  | K50: =IF(AND($N$23="ANUAL",$J$23="MENSUAL"),$N$17/12+J50,IF(AND(N23="SEMESTRAL",J23="MENSUAL"),N17/6+J50,IF(AND(N23="TRIMESTRAL",J23="MENSUAL"),N17/3+J50,IF(AND(N23="MENSUAL",J23="MENSUAL"),N17,"")))) ->  | L50: =IF(AND($N$23="ANUAL",$J$23="MENSUAL"),$N$17/12+K50,IF(AND(N23="SEMESTRAL",J23="MENSUAL"),N17/6+K50,IF(AND(N23="TRIMESTRAL",J23="MENSUAL"),N17/3+K50,IF(AND(N23="MENSUAL",J23="MENSUAL"),N17,"")))) ->  | M50: =IF(AND($N$23="ANUAL",$J$23="MENSUAL"),$N$17/12+L50,IF(AND(N23="SEMESTRAL",J23="MENSUAL"),N17/6+L50,IF(AND(N23="TRIMESTRAL",J23="MENSUAL"),N17/3,IF(AND(N23="MENSUAL",J23="MENSUAL"),N17,"")))) ->  | N50: =IF(AND($N$23="ANUAL",$J$23="MENSUAL"),$N$17/12+M50,IF(AND(N23="SEMESTRAL",J23="MENSUAL"),N17/6+M50,IF(AND(N23="TRIMESTRAL",J23="MENSUAL"),N17/3+M50,IF(AND(N23="MENSUAL",J23="MENSUAL"),N17,"")))) ->  | O50: =IF(AND($N$23="ANUAL",$J$23="MENSUAL"),$N$17/12+N50,IF(AND(N23="SEMESTRAL",J23="MENSUAL"),N17/6+N50,IF(AND(N23="TRIMESTRAL",J23="MENSUAL"),N17/3+N50,IF(AND(N23="MENSUAL",J23="MENSUAL"),N17,"")))) -> 
C51: PRIMER TRIMESTRE
C52: NIVEL DE SEGREGACIÓN *
C53: UNIDAD SEGREGADA (Ej. Facultad, Programa Académico, Área) | G53: RESULTADO | K53: ANÁLISIS DE DATOS SEGREGADO
C54: VICERRECTORIA ADMINISTRATIVA Y FINANCIERA | G54: =1-0/1 -> 1 | K54: Realizado el comparativo de las quejas más reiterativas de los dos trimestres se encontró que para el primer trimestre de 2022 no se presentaron quejas y para el año 2023 primer trimestre se presento una quejas, es decir, que aumento1 quejas para el área de vicerrectoria Administrativa y Financiera
C55: DIRECCIÓN DEL PROGRAMA INGENIERÍA DE SISTEMAS | G55: =1-0/1 -> 1 | K55: Realizado el comparativo de las quejas más reiterativas de los dos trimestres se encontró que para el primer trimestre de 2022 no se presentaron quejas y para el año 2023 primer trimestre se presento una quejas, es decir, que aumento1 quejas para el área de Dirección del programa Ingeniera de Sistemas
G57: Proyectos Especiales y Relaciones Interinstitucionales | J57: Por Facultad
C58: SEGUNDO TRIMESTRE
C59: NIVEL DE SEGREGACIÓN *
C60: UNIDAD SEGREGADA (Ej. Facultad, Programa Académico, Área) | G60: RESULTADO | K60: ANÁLISIS DE DATOS SEGREGADO
C61: DIRECCIÓN DEL PROGRAMA CONTADURÍA PUBLICA | G61: =1-0/2 -> 1 | K61: Realizado el comparativo de las quejas más reiterativas de los dos trimestres se encontró que para el segundo trimestre de 2022 se presentaron dos (2) quejas y para el año 2023 segundo trimestre no se presentaron quejas, es decir, que se presento una disminución de 2 quejas para la dirección de programa contaduría publica.
C62: DIRECCIÓN DEL PROGRAMA INGENIERÍA AMBIENTAL | G62: =1-0/1 -> 1 | K62: Realizado el comparativo de las quejas más reiterativas de los dos trimestres se encontró que para el segundo trimestre de 2022 se presentaron una (1) quejas y para el año 2023 segundo trimestre no se presentaron quejas, es decir, que se presento una disminución de 2 quejas para la dirección de programa Ingeniería Ambiental.
C63: TERCER TRIMESTRE
C64: NIVEL DE SEGREGACIÓN *
C65: UNIDAD SEGREGADA (Ej. Facultad, Programa Académico, Área) | G65: RESULTADO | K65: ANÁLISIS DE DATOS SEGREGADO
C66: DIRECCION DEL PROGRAMA ADMINISTRACION DE EMPRESAS | G66: 1 | K66: Realizado el comparativo de las quejas más reiterativas de los dos trimestres se encontró que para el tercer trimestre de 2022 se presentaron tres (3) quejas y para el año 2023 tercer trimestre no se presentaron quejas, es decir, que se presento una disminución de 3 quejas para la dirección de programa Administración de Empresas.
C67: CUARTO TRIMESTRE
C68: NIVEL DE SEGREGACIÓN *
C69: UNIDAD SEGREGADA (Ej. Facultad, Programa Académico, Área) | G69: RESULTADO | K69: ANÁLISIS DE DATOS SEGREGADO
C70: GESTIÓN BIENESTAR UNIVERSITARIO | G70: =1-0/1 -> 1 | K70: Realizado el comparativo de las quejas más reiterativas de los dos trimestres se encontró que para el cuarto trimestre de 2022 se presentó una (1) quejas y para el año 2023 cuarto trimestre no se presentaron quejas, es decir, que se presento una disminución de 1 quejas para el proceso de Gestión Bienestar Universitario.
C71: GESTIÓN CONTROL DISCIPLINARIO | G71: =1-0/1 -> 1 | K71: Realizado el comparativo de las quejas más reiterativas de los dos trimestres se encontró que para el cuarto trimestre de 2022 se presentó una (1) quejas y para el año 2023 cuarto trimestre no se presentaron quejas, es decir, que se presento una disminución de 1 quejas para el proces de Gestión Control Disciplinario.
C72: GESTIÓN DE PLANEACION INSTITUCIONAL | G72: =1-0/1 -> 1 | K72: Realizado el comparativo de las quejas más reiterativas de los dos trimestres se encontró que para el cuarto trimestre de 2022 se presentó una (1) quejas y para el año 2023 cuarto trimestre no se presentaron quejas, es decir, que se presento una disminución de 1 quejas para el proceso de Planeación Institucional.
G73: Bienes y Servicios
G74: Documental
G75: Apoyo Académico
G76: Control Interno
G77: Control Disciplinario
G78: Servicio de Atención al Ciudadano

Sheet SAC-4
B2: REGRESAR
E5: MACROPROCESO ESTRATÉGICO | M5: CÓDIGO: ESGr027
E6: PROCESO GESTIÓN SISTEMAS INTEGRADOS - CALIDAD | M6: VERSIÓN: 8
E7: MATRIZ DE MEDICIÓN Y SEGUIMIENTO A LOS PROCESOS DE GESTIÓN | M7: VIGENCIA: 2023-07-28
M8: PÁGINA: 4 de 5
C10: FICHA DE INDICADOR
C12: MACROPROCESO | E12: Seguimiento, Medición, Análisis y Evaluación | I12: NOMBRE DEL INDICADOR | K12: Eficiencia en el tiempo de respuestas de derechos de peticiones, quejas, reclamos, sugerencias y denuncias
C13: PROCESO GESTIÓN | E13: Servicio de Atención al Ciudadano
C14: RESPONSABLE DE MEDICIÓN | E14: Gestor Servicio de Atención al Ciudadano
C16: 1. COMPORTAMIENTO DE INDICADOR
C17: CLASIFICACIÓN DE LA MEDICIÓN | E17: 1 | H17: TIPO DE INDICADOR | J17: Eficacia | L17: META | N17: 0.83
C18: FORMULA | E18: NUMERADOR | G18: # de DP- D- Q-R-S resueltas en 13 o menos días * 100 | L18: UNIDAD DE MEDIDA | N18: Porcentaje
E19: DENOMINADOR | G19: # total de DP-D-Q-R-S
C20: TENDENCIA | E20: Positiva | H20: NIVEL DE SEGREGACIÓN * | J20: Otros | L20: ESCALA
L21: Deficiente | M21: Aceptable | N21: Bueno | O21: Excelente
L22: 0% -60% | M22: 60.1% - 70% | N22: 70.1% - 83% | O22: 83.1% - 100%
C23: ORIGEN DE DATOS NUMERADOR | E23: Excel con las tipologías | H23: FRECUENCIA DE LA MEDICIÓN | J23: TRIMESTRAL | L23: FRECUENCIA DE RESULTADO | N23: TRIMESTRAL
C24: ORIGEN DE DATOS DENOMINADOR | E24: Excel con las tipologías
C26: RESULTADOS
J27: ANÁLISIS DE DATOS
J28: PRIMER TRIMESTRE 2023 Para generar este indicador el gestor del proceso de servicio de atención al ciudadano toma como base el reporte generado del sistemas de atención e información al ciudadano (SAIC) de fecha 1 de enero a 31 de marzo de 2023, en donde se formula los días hábiles laborales y se descuenta los fines de semanas y festivos, de igual manera por ser inicio de año se descuenta el tiempo de vacaciones que terminó el 9 de enero de 2023, y así se estableció el tiempo que se demora un funcionario en responder un derecho de petición, denuncia, quejas, reclamo y sugerencias. Una vez depurada la base de datos se toma el total de los derechos de petición, reclamos y quejas que se presentaron para este trimestre, el cual corresponde a 69 petición en total, luego se identificó que de este total de peticiones se respondieron en un tiempo mínimo de 13 días por parte de los funcionarios competentes, dando como resultado un total de 65 peticiones atendidas dentro de los tiempos de ley. De acuerdo a los resultados mencionados el indicador que esta basado en los 13 días hábiles arrojó para este trimestre un porcentaje de 94%, quedando por encima de la meta establecida, este resultado se logro por que el proceso de servicio de atención al ciudadano mediante el sistema SAIC, cuenta con un sistema automático de notificación como alarma, el cual se da cada tercer día a los correos institucionales de los funcionarios competentes para dar respuesta a los requerimientos de los ciudadanos y así poder dar cumplimiento a los tiempos establecidos por la ley 1755 de 2015. Sin embargo, se realiza el ejerció de la disminución máxima de días de respuesta, encontrando que para este trimestre se dieron respuesta en menos de 6 días hábiles, con un total de 59 sobre las 64 peticiones recibidas. Otro de las actividades que realiza el proceso de atención al ciudadano para que los funcionarios den respuesta a las solicitudes es los tiempos estipulados es enviar cuadros semanales donde se relaciona cuantas peticiones tienen pendiente por contestar y la fecha limite de vencimiento. De igual manera se realizaron capacitaciones a los funcionarios competentes donde se les informa el tiempo máximo para responder una petición y la importancia del proceso de servicio de atención al ciudadano, el cual se realiza cada semestre. SEGUNDO TRIMESTRE 2023 Para generar este indicador el gestor del proceso de servicio de atención al ciudadano toma como base el reporte generado del sistemas de atención e información al ciudadano (SAIC) de fecha 1 de abril al 30 de marzo de 2023, en donde se formula los días hábiles laborales y se descuenta los fines de semanas y festivos, de igual manera, se descontó los cinco días hábiles de vacaciones colectivas que se estableció dentro de la institución al personal de planta para el mes de junio, y así se estableció el tiempo que se demora un funcionario en responder un derecho de petición, denuncia, quejas, reclamo y sugerencias. Una vez depurada la base de datos se toma el total de los derechos de petición, reclamos y quejas que se presentaron para este trimestre, el cual corresponde a 69 petición en total, luego se identificó que de este total de peticiones fueron resueltas en un tiempo mínimo de 13 días por parte de los funcionarios competentes, dando como resultado un total de 59 peticiones atendidas dentro de los tiempos de ley. De acuerdo a los resultados mencionados el indicador que esta basado en los 13 días hábiles arrojó para este trimestre un porcentaje de 86%, quedando por encima de la meta establecida, este resultado se logro por que el proceso de servicio de atención al ciudadano mediante el sistema SAIC, cuenta con un sistema automático de notificación como alarma, el cual se da cada tercer día a los correos institucionales de los funcionarios competentes para dar respuesta a los requerimientos de los ciudadanos y así poder dar cumplimiento a los tiempos establecidos por la ley 1755 de 2015. Sin embargo, se realiza el ejerció de la disminución máxima de días de respuesta, encontrando que para este trimestre se dieron respuesta en menos de 12 días hábiles, con un total de 58 sobre las 69 peticiones recibidas. Otro de las actividades que realiza el proceso de atención al ciudadano para que los funcionarios den respuesta a las solicitudes es los tiempos estipulados es enviar cuadros semanales donde se relaciona cuantas peticiones tienen pendiente por contestar y la fecha limite de vencimiento. De igual manera se realizaron capacitaciones a los funcionarios competentes donde se les informa el tiempo máximo para responder una petición y la importancia del proceso de servicio de atención al ciudadano, el cual se realiza cada semestre. "PRIMER TRIMESTRE 2023 Para generar este indicador el gestor del proceso de servicio de atención al ciudadano toma como base el reporte generado del sistemas de atención e información al ciudadano (SAIC) de fecha 1 de enero a 31 de marzo de 2023, en donde se formula los días hábiles laborales y se descuenta los fines de semanas y festivos, de igual manera por ser inicio de año se descuenta el tiempo de vacaciones que terminó el 9 de enero de 2023, y así se estableció el tiempo que se demora un funcionario en responder un derecho de petición, denuncia, quejas, reclamo y sugerencias. Una vez depurada la base de datos se toma el total de los derechos de petición, reclamos y quejas que se presentaron para este trimestre, el cual corresponde a 69 petición en total, luego se identificó que de este total de peticiones se respondieron en un tiempo mínimo de 13 días por parte de los funcionarios competentes, dando como resultado un total de 65 peticiones atendidas dentro de los tiempos de ley. De acuerdo a los resultados mencionados el indicador que esta basado en los 13 días hábiles arrojó para este trimestre un porcentaje de 94%, quedando por encima de la meta establecida, este resultado se logro por que el proceso de servicio de atención al ciudadano mediante el sistema SAIC, cuenta con un sistema automático de notificación como alarma, el cual se da cada tercer día a los correos institucionales de los funcionarios competentes para dar respuesta a los requerimientos de los ciudadanos y así poder dar cumplimiento a los tiempos establecidos por la ley 1755 de 2015. Sin embargo, se realiza el ejerció de la disminución máxima de días de respuesta, encontrando que para este trimestre se dieron respuesta en menos de 6 días hábiles, con un total de 59 sobre las 64 peticiones recibidas. Otro de las actividades que realiza el proceso de atención al ciudadano para que los funcionarios den respuesta a las solicitudes es los tiempos estipulados es enviar cuadros semanales donde se relaciona cuantas peticiones tienen pendiente por contestar y la fecha limite de vencimiento. De igual manera se realizaron capacitaciones a los funcionarios competentes donde se les informa el tiempo máximo para responder una petición y la importancia del proceso de servicio de atención al ciudadano, el cual se realiza cada semestre. SEGUNDO TRIMESTRE 2023 Para generar este indicador el gestor del proceso de servicio de atención al ciudadano toma como base el reporte generado del sistemas de atención e información al ciudadano (SAIC) de fecha 1 de abril al 30 de marzo de 2023, en donde se formula los días hábiles laborales y se descuenta los fines de semanas y festivos, de igual manera, se descontó los cinco días hábiles de vacaciones colectivas que se estableció dentro de la institución al personal de planta para el mes de junio, y así se estableció el tiempo que se demora un funcionario en responder un derecho de petición, denuncia, quejas, reclamo y sugerencias. Una vez depurada la base de datos se toma el total de los derechos de petición, reclamos y quejas que se presentaron para este trimestre, el cual corresponde a 69 petición en total, luego se identificó que de este total de peticiones fueron resueltas en un tiempo mínimo de 13 días por parte de los funcionarios competentes, dando como resultado un total de 59 peticiones atendidas dentro de los tiempos de ley. De acuerdo a los resultados mencionados el indicador que esta basado en los 13 días hábiles arrojó para este trimestre un porcentaje de 86%, quedando por encima de la meta establecida, este resultado se logro por que el proceso de servicio de atención al ciudadano mediante el sistema SAIC, cuenta con un sistema automático de notificación como alarma, el cual se da cada tercer día a los correos institucionales de los funcionarios competentes para dar respuesta a los requerimientos de los ciudadanos y así poder dar cumplimiento a los tiempos establecidos por la ley 1755 de 2015. Sin embargo, se realiza el ejerció de la disminución máxima de días de respuesta, encontrando que para este trimestre se dieron respuesta en menos de 12 días hábiles, con un total de 58 sobre las 69 peticiones recibidas. Otro de las actividades que realiza el proceso de atención al ciudadano para que los funcionarios den respuesta a las solicitudes es los tiempos estipulados es enviar cuadros semanales donde se relaciona cuantas peticiones tienen pendiente por contestar y la fecha limite de vencimiento. De igual manera se realizaron capacitaciones a los funcionarios competentes donde se les informa el tiempo máximo para responder una petición y la importancia del proceso de servicio de atención al ciudadano, el cual se realiza cada semestre. TERCER TRIMESTRE 2023 Para generar este indicador el gestor del proceso de servicio de atención al ciudadano toma como base el reporte generado del sistemas de atención e información al ciudadano (SAIC) de fecha 1 de julio al 30 de septiembre de 2023, en donde se formula los días hábiles laborales y se descuenta los fines de semanas y festivos, y así se estableció el tiempo que se demora un funcionario en responder un derecho de petición, denuncia, quejas, reclamo y sugerencias. Una vez depurada la base de datos se toma el total de los derechos de petición, reclamos y quejas que se presentaron para este trimestre, el cual corresponde a 85 petición en total, luego se identificó que de este total de peticiones fueron resueltas en un tiempo mínimo de 13 días por parte de los funcionarios competentes, dando como resultado un total de 74 peticiones atendidas dentro de los tiempos de ley. De acuerdo a los resultados mencionados el indicador que esta basado en los 13 días hábiles arrojó para este trimestre un porcentaje de 87%, quedando por encima de la meta establecida, este resultado se logro por que el proceso de servicio de atención al ciudadano mediante el sistema SAIC, cuenta con un sistema automático de notificación como alarma, el cual se da cada tercer día a los correos institucionales de los funcionarios competentes para dar respuesta a los requerimientos de los ciudadanos y así poder dar cumplimiento a los tiempos establecidos por la ley 1755 de 2015. Sin embargo, se realiza el ejerció de la disminución máxima de días de respuesta, encontrando que para este trimestre se dieron respuesta en menos de 12 días hábiles, con un total de 71 sobre las 85 peticiones recibidas. Otro de las actividades que realiza el proceso de atención al ciudadano para el cumplimiento de los terminos es enviar cuadros semanales donde se relaciona cuantas peticiones tienen pendiente por contestar y la fecha limite de vencimiento a los funcionarios competentes en emitir respuesta a las solicitudes asignadas. De igual manera para este trimestre se realizaron capacitaciones por facultad dado que en la mayoria de las peticiones instauradas han sido de tipo academico y administrativo en donde la mayoria es competencia de lo académico, por lo tanto, se ha focalizado estas capacitaciones en donde se les informa el tiempo máximo para responder una petición y la importancia del proceso de servicio de atención al ciudadano." CUARTO TRIMESTRE 2023 Para generar este indicador el gestor del proceso de servicio de atención al ciudadano toma como base el reporte generado del sistemas de atención e información al ciudadano (SAIC) de fecha 1 de octubre al 31 de diciembre de 2023, en donde se formula los días hábiles laborales y se descuenta los fines de semanas y festivos, y así se estableció el tiempo que se demora un funcionario en responder un derecho de petición, denuncia, quejas, reclamo y sugerencias. Una vez depurada la base de datos se toma el total de los derechos de petición, reclamos y quejas que se presentaron para este trimestre, el cual corresponde a 68 petición en total, luego se identificó que de este total de peticiones fueron resueltas en un tiempo mínimo de 13 días por parte de los funcionarios competentes, dando como resultado un total de 59 peticiones atendidas dentro de los tiempos de ley. De acuerdo a los resultados mencionados el indicador que esta basado en los 13 días hábiles arrojó para este trimestre un porcentaje de 87%, quedando por encima de la meta establecida, este resultado se logro por que el proceso de servicio de atención al ciudadano mediante el sistema SAIC, cuenta con un sistema automático de notificación como alertas, el cual se da cada tercer día a los correos institucionales de los funcionarios competentes para dar respuesta a los requerimientos de los ciudadanos y así poder dar cumplimiento a los tiempos establecidos por la ley 1755 de 2015. Sin embargo, se realiza el ejerció de la disminución máxima de días de respuesta, encontrando que para este trimestre se dieron respuesta en menos de 10 días hábiles, con un total de 57 sobre las 68 peticiones recibidas. Otro de las actividades que realiza el proceso de atención al ciudadano para el cumplimiento de los terminos es enviar cuadros semanales donde se relaciona cuantas peticiones tienen pendiente por contestar y la fecha limite de vencimiento a los funcionarios competentes en emitir respuesta a las solicitudes asignadas.
J34: ACCIÓN FORMULADA
J41: RESPONSABLE
J42: =E14 -> Gestor Servicio de Atención al Ciudadano
C45: PERIODO DE EVALUACIÓN
C46: MES | D46: =IF(J23="MENSUAL","ENERO",IF(J23="TRIMESTRAL","MARZO",IF(J23="SEMESTRAL","JUNIO",IF(J23="ANUAL",YEAR(TODAY()),"")))) -> MARZO | E46: =IF(J23="MENSUAL","FEBRERO",IF(J23="TRIMESTRAL","JUNIO",IF(J23="SEMESTRAL","DICIEMBRE",""))) -> JUNIO | F46: =IF(J23="MENSUAL","MARZO",IF(J23="TRIMESTRAL","SEPTIEMBRE","")) -> SEPTIEMBRE | G46: =IF(J23="MENSUAL","ABRIL",IF(J23="TRIMESTRAL","DICIEMBRE","")) -> DICIEMBRE | H46: =IF(J23="MENSUAL","MAYO","") ->  | I46: =IF(J23="MENSUAL","JUNIO","") ->  | J46: =IF(J23="MENSUAL","JULIO","") ->  | K46: =IF(J23="MENSUAL","AGOSTO","") ->  | L46: =IF(J23="MENSUAL","SEPTIEMBRE","") ->  | M46: =IF(J23="MENSUAL","OCTUBRE","") ->  | N46: =IF(J23="MENSUAL","NOVIEMBRE","") ->  | O46: =IF(J23="MENSUAL","DICIEMBRE","") -> 
C47: =G18 -> # de DP- D- Q-R-S resueltas en 13 o menos días * 100 | D47: 65 | E47: 59 | F47: 74 | G47: 59
C48: =G19 -> # total de DP-D-Q-R-S | D48: 69 | E48: 69 | F48: 85 | G48: 68
C49: VALOR | D49: =IFERROR(IF($E$17=1,D47/D48,IF($E$17=2,D47,"")),"") -> 0.9420289855 | E49: =IFERROR(IF($E$17=1,E47/E48,IF($E$17=2,E47,"")),"") -> 0.8550724638 | F49: 0.8705882353 | G49: =IFERROR(IF($E$17=1,G47/G48,IF($E$17=2,G47,"")),"") -> 0.8676470588
C50: META PONDERADA | D50: =IF(AND(N23="ANUAL",J23="MENSUAL"),N17/12,IF(AND(N23="ANUAL",J23="TRIMESTRAL"),N17/4,IF(AND(N23="ANUAL",J23="SEMESTRAL"),N17/2,IF(AND(N23="ANUAL",J23="ANUAL"),N17,IF(AND(N23="SEMESTRAL",J23="MENSUAL"),N17/6,IF(AND(N23="SEMESTRAL",J23="TRIMESTRAL"),N17/2,IF(AND(N23="SEMESTRAL",J23="SEMESTRAL"),N17,IF(AND(N23="SEMESTRAL",J23="ANUAL"),"REVISAR FRECUENCIAS",IF(AND(N23="TRIMESTRAL",J23="MENSUAL"),N17/3,IF(AND(N23="TRIMESTRAL",J23="TRIMESTRAL"),N17,IF(AND(N23="TRIMESTRAL",J23="SEMESTRAL"),"REVISAR FRECUENCIAS",IF(AND(N23="TRIMESTRAL",J23="ANUAL"),"REVISAR FRECUENCIAS",IF(AND(N23="MENSUAL",J23="MENSUAL"),N17,IF(AND(N23="MENSUAL",J23="TRIMESTRAL"),"REVISAR FRECUENCIAS",IF(AND(N23="MENSUAL",J23="SEMESTRAL"),"REVISAR FRECUENCIAS",IF(AND(N23="MENSUAL",J23="ANUAL"),"REVISAR FRECUENCIAS","")))))))))))))))) -> 0.83 | E50: =IF(AND(N23="ANUAL",J23="MENSUAL"),N17/12+D50,IF(AND(N23="ANUAL",J23="TRIMESTRAL"),N17/4+D50,IF(AND(N23="ANUAL",J23="SEMESTRAL"),N17/2+D50,IF(AND(N23="SEMESTRAL",J23="MENSUAL"),N17/6+D50,IF(AND(N23="SEMESTRAL",J23="TRIMESTRAL"),N17/2+D50,IF(AND(N23="SEMESTRAL",J23="SEMESTRAL"),N17,IF(AND(N23="TRIMESTRAL",J23="MENSUAL"),N17/3+D50,IF(AND(N23="TRIMESTRAL",J23="TRIMESTRAL"),N17,IF(AND(N23="MENSUAL",J23="MENSUAL"),N17,""))))))))) -> 0.83 | F50: =IF(AND(N23="ANUAL",J23="MENSUAL"),N17/12+E50,IF(AND(N23="ANUAL",J23="TRIMESTRAL"),N17/4+E50,IF(AND(N23="SEMESTRAL",J23="MENSUAL"),N17/6+E50,IF(AND(N23="SEMESTRAL",J23="TRIMESTRAL"),N17/2,IF(AND(N23="TRIMESTRAL",J23="MENSUAL"),N17/3+E50,IF(AND(N23="TRIMESTRAL",J23="TRIMESTRAL"),N17,IF(AND(N23="MENSUAL",J23="MENSUAL"),N17,""))))))) -> 0.83 | G50: =IF(AND(N23="ANUAL",J23="MENSUAL"),N17/12+F50,IF(AND(N23="ANUAL",J23="TRIMESTRAL"),N17/4+F50,IF(AND(N23="SEMESTRAL",J23="MENSUAL"),N17/6+F50,IF(AND(N23="SEMESTRAL",J23="TRIMESTRAL"),N17/2+F50,IF(AND(N23="TRIMESTRAL",J23="MENSUAL"),N17/3,IF(AND(N23="TRIMESTRAL",J23="TRIMESTRAL"),N17,IF(AND(N23="MENSUAL",J23="MENSUAL"),N17,""))))))) -> 0.83 | H50: =IF(AND($N$23="ANUAL",$J$23="MENSUAL"),$N$17/12+G50,IF(AND(N23="SEMESTRAL",J23="MENSUAL"),N17/6+G50,IF(AND(N23="TRIMESTRAL",J23="MENSUAL"),N17/3+G50,IF(AND(N23="MENSUAL",J23="MENSUAL"),N17,"")))) ->  | I50: =IF(AND($N$23="ANUAL",$J$23="MENSUAL"),$N$17/12+H50,IF(AND(N23="SEMESTRAL",J23="MENSUAL"),N17/6+H50,IF(AND(N23="TRIMESTRAL",J23="MENSUAL"),N17/3+H50,IF(AND(N23="MENSUAL",J23="MENSUAL"),N17,"")))) ->  | J50: =IF(AND($N$23="ANUAL",$J$23="MENSUAL"),$N$17/12+I50,IF(AND(N23="SEMESTRAL",J23="MENSUAL"),N17/6,IF(AND(N23="TRIMESTRAL",J23="MENSUAL"),N17/3,IF(AND(N23="MENSUAL",J23="MENSUAL"),N17,"")))) ->  | K50: =IF(AND($N$23="ANUAL",$J$23="MENSUAL"),$N$17/12+J50,IF(AND(N23="SEMESTRAL",J23="MENSUAL"),N17/6+J50,IF(AND(N23="TRIMESTRAL",J23="MENSUAL"),N17/3+J50,IF(AND(N23="MENSUAL",J23="MENSUAL"),N17,"")))) ->  | L50: =IF(AND($N$23="ANUAL",$J$23="MENSUAL"),$N$17/12+K50,IF(AND(N23="SEMESTRAL",J23="MENSUAL"),N17/6+K50,IF(AND(N23="TRIMESTRAL",J23="MENSUAL"),N17/3+K50,IF(AND(N23="MENSUAL",J23="MENSUAL"),N17,"")))) ->  | M50: =IF(AND($N$23="ANUAL",$J$23="MENSUAL"),$N$17/12+L50,IF(AND(N23="SEMESTRAL",J23="MENSUAL"),N17/6+L50,IF(AND(N23="TRIMESTRAL",J23="MENSUAL"),N17/3,IF(AND(N23="MENSUAL",J23="MENSUAL"),N17,"")))) ->  | N50: =IF(AND($N$23="ANUAL",$J$23="MENSUAL"),$N$17/12+M50,IF(AND(N23="SEMESTRAL",J23="MENSUAL"),N17/6+M50,IF(AND(N23="TRIMESTRAL",J23="MENSUAL"),N17/3+M50,IF(AND(N23="MENSUAL",J23="MENSUAL"),N17,"")))) ->  | O50: =IF(AND($N$23="ANUAL",$J$23="MENSUAL"),$N$17/12+N50,IF(AND(N23="SEMESTRAL",J23="MENSUAL"),N17/6+N50,IF(AND(N23="TRIMESTRAL",J23="MENSUAL"),N17/3+N50,IF(AND(N23="MENSUAL",J23="MENSUAL"),N17,"")))) -> 
C52: NIVEL DE SEGREGACIÓN *
C53: UNIDAD SEGREGADA (Ej. Facultad, Programa Académico, Área) | G53: RESULTADO | K53: ANÁLISIS DE DATOS SEGREGADO
G72: Estratégico | J72: Eficacia
G73: Misional | J73: Eficiencia
G74: Apoyo | J74: Acreditación
G75: Seguimiento, Medición, Análisis y Evaluación | J75: Positiva
G76: Direccionamiento Estratégico | J76: Negativa
G77: Planeación Institucional | J77: Por Unidad Regional
G78: Proyectos Especiales y Relaciones Interinstitucionales | J78: Por Facultad
G79: Sistemas Integrados | J79: Por Programa Académico
G80: Autoevaluación y Acreditación | J80: Por área
G81: Comunicaciones | J81: Por Laboratorio
G82: Formación y Aprendizaje | J82: Otros
G83: Ciencia, Tecnología e Innovación | J83: No Aplica
G84: Interacción Social Universitaria
G85: Bienestar Universitario
G86: Admisiones y Registro
G87: Graduados
G88: Dialogando con el Mundo
G89: Talento Humano
G90: Jurídica
G91: Financiera
G92: Sistemas y Tecnología
G93: Bienes y Servicios
G94: Documental
G95: Apoyo Académico
G96: Control Interno
G97: Control Disciplinario
G98: Servicio de Atención al Ciudadano

Sheet ACTUALIZACIONES
C2: MACROPROCESO ESTRATÉGICO | E2: CÓDIGO: ESGr027
C3: PROCESO GESTIÓN SISTEMAS INTEGRADOS - CALIDAD | E3: VERSIÓN: 8
C4: MATRIZ DE MEDICIÓN Y SEGUIMIENTO A LOS PROCESOS DE GESTIÓN | E4: VIGENCIA: 2023-07-28
E5: PÁGINA: 5 de 5
B7: CONTROL DE ACTUALIZACIONES
B8: FECHA | C8: DESCRIPCIÓN DE LA ACTUALIZACIÓN | D8: RESPONSABLE | E8: CARGO
B9: 2020-04-28 | C9: Las metas se reestructuran: indicador dos, queda con una meta del 30% (tendencia positiva) y el indicador cuatro queda exactamente igual. Eliminar el indicador 3 “Reconocimiento a la gestión de la institución”, entendiendo que el número de felicitaciones no se pueden controla directamente como si se puede hacer con las PQRS, en ese sentido, si entramos a medirlo para este primer trimestre tendríamos un resultado del 0%, pues comparando las felicitaciones de este periodo con el de la vigencia anterior, estas disminuyeron mas no aumentaron | D9: Isabel Quintero Uribe | E9: Secretaria General
B10: 2021-04-09 | C10: SAC02: Para este indicador se incrementa la meta al 35%, teniendo en cuenta el comportamiento del mismo SAC03: Para este indicador se incrementa la meta al 40% teniendo en cuenta el comportamiento del mismo. SAC04: Este indicador se mantiene tal cual, como la vigencia anterior toda vez que se concibe como indicador nuevo teniendo en cuenta que sea realizado dos mediciones al año (medición trimestral) | D10: Isabel Quintero Uribe | E10: Secretaria General
B11: 2022-03-04 | C11: Se hizo un ajuste a la propuesta del indicador el cual hace referencia a "Eficiencia en el tiempo de respuestas de derechos de peticiones, quejas, reclamos, sugerencias y denuncias", donde se ajustó la redacción en las observaciones. En cuanto a lo relacionado con porcentaje de la meta se dejara la misma que se tiene en el 2021, dado que el comportamiento de los indicadores en algunos trimestres llega a la meta y en algunos casos quedan por debajo de la misma. | D11: Isabel Quintero Uribe | E11: Secretaria General
B12: 2023-02-24 | C12: SAC02: Para este indicador se incrementa el porcentaje de la meta en un 5%, de este modo pasa de un porcentaje de 35% al 40%. SAC03: Para este indicador se incrementa el porcentaje de la meta en un 5%, de este modo pasa de un porcentaje de 35% al 40% SAC04: Para este indicador se incrementa el porcentaje de la meta en un 3%, de este modo pasa de un porcentaje de 80% al 83% | D12: Isabel Quintero Uribe | E12: Secretaria General
B26: Diagonal 18 No. 20-29 Fusagasugá – Cundinamarca Teléfono (601) 8281483 Línea Gratuita 018000180414 www.ucundinamarca.edu.co E-mail: info@ucundinamarca.edu.co NIT: 890.680.062-2
B29: Documento controlado por el Sistema de Gestión de la Calidad Asegúrese que corresponde a la última versión consultando el Portal Institucional

Sheet ITEM (hidden)
A1: MENSUAL | C1: NÚMERO
A2: TRIMESTRAL | C2: PORCENTAJE
A3: SEMESTRAL
A4: ANUAL
